Workbook

Sheet Cover page
A2: Ergon Energy Public Lighting Capex and Opex Forecasting Model
A3: 2025-30

Sheet Version Control
A1: RDP2025 Project: Public Lighting Expenditure Analysis Model
B4: Date | C4: Version | D4: Description of any updates made
B5: 2024-01-31 | C5: V1 | D5: Version submitted to the AER

Sheet Intro
A1: Model developer | B1: Energex & Ergon Energy Network
A5: Purpose | B5: To provide capex and opex scenarios based on the 100% LED deployment during 2025-30 regulatory period.
A7: Colour chart | B7: Data | C7: Cells containing hard coded data
C8: Cell containing formula
C9: Cells to remain empty (non-applicable input/output)
B10: Assumptions | C10: Cells containing assumptions intended to be manipulated by model users
B11: Text | C11: Important notes providing details
C12: Cell highlighting particular attention
B13: Header 1 | C13: Fist header
B14: Header 2 | C14: Second header
B15: Header 3 | C15: Third hearder

Sheet >>General inputs

Sheet Cost Escalations
B1: 2019-20 | C1: 2020-21 | D1: 2021-22 | E1: 2022-23 | F1: 2023-24 | G1: 2024-25
B2: 2020-06-01 | C2: 2021-06-01 | D2: 2022-06-01 | E2: 2023-06-01 | F2: 2024-06-01 | G2: 2025-06-01
A3: Inflation | B3: -0.003484320557 | C3: 0.03846153846 | D3: 0.06144781145 | E3: 0.0625 | F3: 0.035 | G3: 0.02749847932
A5: Real to Real
B6: 2020-06-01 | C6: 2021-06-01 | D6: 2022-06-01 | E6: 2023-06-01 | F6: 2024-06-01 | G6: 2025-06-01
A7: 2020-06-01 | B7: =IF(AND($A7>B$6,ISNONTEXT($A7)),C7/(1+C$3),IF(AND($A7=B$6,B$6=B$2),1,IF(AND($A7<B$6,B$6=B$2),#REF!*(1+B$3),0))) -> 1 | C7: =IF(AND($A7>C$6,ISNONTEXT($A7)),D7/(1+D$3),IF(AND($A7=C$6,C$6=C$2),1,IF(AND($A7<C$6,C$6=C$2),B7*(1+C$3),0))) -> 1.038461538 | D7: 1.102272727 | E7: 1.171164773 | F7: 1.21215554 | G7: =IF(AND($A7>G$6,ISNONTEXT($A7)),#REF!/(1+#REF!),IF(AND($A7=G$6,G$6=G$2),1,IF(AND($A7<G$6,G$6=G$2),F7*(1+G$3),0))) -> 1.245487974
A8: 2021-06-01 | B8: =IF(AND($A8>B$6,ISNONTEXT($A8)),C8/(1+C$3),IF(AND($A8=B$6,B$6=B$2),1,IF(AND($A8<B$6,B$6=B$2),#REF!*(1+B$3),0))) -> 0.962962963 | C8: 1 | D8: 1.061447811 | E8: 1.1277883 | F8: 1.16726089 | G8: =IF(AND($A8>G$6,ISNONTEXT($A8)),#REF!/(1+#REF!),IF(AND($A8=G$6,G$6=G$2),1,IF(AND($A8<G$6,G$6=G$2),F8*(1+G$3),0))) -> 1.19935879
A9: 2022-06-01 | B9: =IF(AND($A9>B$6,ISNONTEXT($A9)),C9/(1+C$3),IF(AND($A9=B$6,B$6=B$2),1,IF(AND($A9<B$6,B$6=B$2),#REF!*(1+B$3),0))) -> 0.9072164948 | C9: 0.942109437 | D9: 1 | E9: 1.0625 | F9: =IF(AND($A9>F$6,ISNONTEXT($A9)),G9/(1+G$3),IF(AND($A9=F$6,F$6=F$2),1,IF(AND($A9<F$6,F$6=F$2),E9*(1+F$3),0))) -> 1.0996875 | G9: =IF(AND($A9>G$6,ISNONTEXT($A9)),#REF!/(1+#REF!),IF(AND($A9=G$6,G$6=G$2),1,IF(AND($A9<G$6,G$6=G$2),F9*(1+G$3),0))) -> 1.129927234
A10: 2023-06-01 | B10: =IF(AND($A10>B$6,ISNONTEXT($A10)),C10/(1+C$3),IF(AND($A10=B$6,B$6=B$2),1,IF(AND($A10<B$6,B$6=B$2),#REF!*(1+B$3),0))) -> 0.8538508187 | C10: 0.8866912348 | D10: 0.9411764706 | E10: 1 | F10: 1.035 | G10: =IF(AND($A10>G$6,ISNONTEXT($A10)),#REF!/(1+#REF!),IF(AND($A10=G$6,G$6=G$2),1,IF(AND($A10<G$6,G$6=G$2),F10*(1+G$3),0))) -> 1.063460926
A11: 2024-06-01 | B11: =IF(AND($A11>B$6,ISNONTEXT($A11)),C11/(1+C$3),IF(AND($A11=B$6,B$6=B$2),1,IF(AND($A11<B$6,B$6=B$2),#REF!*(1+B$3),0))) -> 0.8249766364 | C11: 0.856706507 | D11: 0.9093492469 | E11: 0.9661835749 | F11: 1 | G11: =IF(AND($A11>G$6,ISNONTEXT($A11)),#REF!/(1+#REF!),IF(AND($A11=G$6,G$6=G$2),1,IF(AND($A11<G$6,G$6=G$2),F11*(1+G$3),0))) -> 1.027498479
A12: 2025-06-01 | B12: =IF(AND($A12>B$6,ISNONTEXT($A12)),C12/(1+C$3),IF(AND($A12=B$6,B$6=B$2),1,IF(AND($A12<B$6,B$6=B$2),#REF!*(1+B$3),0))) -> 0.802898158 | C12: 0.8337788564 | D12: 0.8850127424 | E12: 0.9403260388 | F12: 0.9732374501 | G12: =IF(AND($A12>G$6,ISNONTEXT($A12)),#REF!/(1+#REF!),IF(AND($A12=G$6,G$6=G$2),1,IF(AND($A12<G$6,G$6=G$2),F12*(1+G$3),0))) -> 1
A14: Nominal to Real
B15: 2020-06-01 | C15: 2021-06-01 | D15: 2022-06-01 | E15: 2023-06-01 | F15: 2024-06-01 | G15: 2025-06-01
A16: 2020-06-01 | B16: =IF(AND(B$15=B$2,ISNONTEXT($A16)),1/B7*(1+B$3)^0.5,0) -> 0.9982563195 | C16: =IF(AND(C$15=C$2,ISNONTEXT($A16)),1/C7*(1+C$3)^0.5,0) -> 0.9813067629 | D16: =IF(AND(D$15=D$2,ISNONTEXT($A16)),1/D7*(1+D$3)^0.5,0) -> 0.9346742127 | E16: 0.8801292785 | F16: 0.8392895665 | G16: 0.8138625325
A17: 2021-06-01 | B17: =IF(AND(B$15=B$2,ISNONTEXT($A17)),1/B8*(1+B$3)^0.5,0) -> 1.036650793 | C17: 1.019049331 | D17: 0.9706232209 | E17: 0.9139804046 | F17: 0.8715699344 | G17: 0.8451649376
A18: 2022-06-01 | B18: 1.100350716 | C18: 1.081667682 | D18: 1.030265894 | E18: 0.9701425001 | F18: 0.9251259994 | G18: 0.8970984733
A19: 2023-06-01 | B19: 1.169122636 | C19: 1.149271912 | D19: 1.094657512 | E19: 1.030776406 | F19: 0.9829463744 | G19: 0.9531671279
A20: 2024-06-01 | B20: 1.210041928 | C20: 1.189496429 | D20: 1.132970525 | E20: 1.066853581 | F20: 1.017349497 | G20: 0.9865279774
A21: 2025-06-01 | B21: 1.243316241 | C21: 1.222205772 | D21: 1.164125491 | E21: 1.096190432 | F21: 1.045325062 | G21: 1.013655997
A23: Real escalation
A24: Contractor | B24: 2025-26 | C24: 2026-27 | D24: 2027-28 | E24: 2028-29 | F24: 2029-30
A25: Escalation - Year on Year | B25: 0.0105 | C25: 0.0071 | D25: 0.0061 | E25: 0.0092 | F25: 0.0109 | G25: Source: BISOE report
A26: Escalation - Cumulative | B26: =PRODUCT(1+$B25:B25)-1 -> 0.0105 | C26: =PRODUCT(1+$B25:C25)-1 -> 0.01767455 | D26: =PRODUCT(1+$B25:D25)-1 -> 0.02388236475 | E26: =PRODUCT(1+$B25:E25)-1 -> 0.03330208251 | F26: =PRODUCT(1+$B25:F25)-1 -> 0.04456507521
A28: Labour | B28: 2025-26 | C28: 2026-27 | D28: 2027-28 | E28: 2028-29 | F28: 2029-30
A29: Escalation - Year on Year | B29: 0.0116 | C29: 0.0086 | D29: 0.0061 | E29: 0.009 | F29: 0.0105 | G29: Source: BISOE report
A30: Escalation - Cumulative | B30: =PRODUCT(1+$B29:B29)-1 -> 0.0116 | C30: =PRODUCT(1+$B29:C29)-1 -> 0.02029976 | D30: =PRODUCT(1+$B29:D29)-1 -> 0.02652358854 | E30: =PRODUCT(1+$B29:E29)-1 -> 0.03576230083 | F30: =PRODUCT(1+$B29:F29)-1 -> 0.04663780499

Sheet Ratios & Assumptions
A1: Table 1 - ERG ratios between major and minor roads
C2: 2025-26
A3: DNSP | B3: Road type | C3: Volume | D3: Ratio
A4: Ergon | B4: Major | C4: =SUMIF('ERG - Yearly volume scenarios'!$C$5:$C$12,'Ratios & Assumptions'!$B4,'ERG - Yearly volume scenarios'!$G$5:$G$12) ->  | D4: =C4/$C$6 -> 
A5: Ergon | B5: Minor | C5: =SUMIF('ERG - Yearly volume scenarios'!$C$5:$C$12,'Ratios & Assumptions'!$B5,'ERG - Yearly volume scenarios'!$G$5:$G$12) ->  | D5: =C5/$C$6 -> 
A6: Ergon | B6: All | C6: =SUM(C4:C5) ->  | D6: =SUM(D4:D5) -> 
A7: Notes:
A8: Allocation based on actual 2021-22 volumes
A9: Used to allocate expenditure between major and minor road types where the breakdown is not available
A11: Table 2 - ERG estimated annual growth rates
A12: DNSP | B12: Road | C12: Rate | D12: Rate
A13: Ergon | B13: All | C13: 1 | D13: 0.025
A14: Ergon | B14: All | C14: 2 | D14: 0.015
A15: Note:
A16: Different growth rates for Rate 1 and Rate 2
A19: Table 3 - Estimated proportion of contributed Rate 2 LEDs
A20: DNSP | B20: Road | C20: Rate
A21: Ergon | B21: Major | C21: 0.06084498661
A22: Ergon | B22: Minor | C22: 0.04078588116
A23: Note:
A24: Based on EGX's figures due to data availability issues for Ergon

Sheet Overheads
A1: Table 1 - ERG Labour Oncosts
A2: DNSP | B2: Cost type | C2: Cost recovery | D2: FY2023
A3: Ergon | B3: Labour Oncosts | C3: Labour only | D3: 0
A4: Ergon | B4: All | C4: All | D4: =SUM(D3) -> 0
A6: Table 2 - ERG Material Oncosts
A7: DNSP | B7: Cost type | C7: Cost recovery | D7: FY2023
A8: Ergon | B8: Material Oncosts | C8: Material only | D8: 0.079587701
A9: Ergon | B9: All | C9: All | D9: =SUM(D8) -> 0.079587701
A11: Table 3 - ERG Fleet Oncosts
A12: DNSP | B12: Cost type | C12: Cost recovery | D12: FY2023
A13: Ergon | B13: Fleet Oncost Indirects | C13: Labour only | D13: 0.1266957608
A14: Ergon | B14: Fleet Oncost Depreciation | C14: Labour only | D14: 0.08494458414
A15: Ergon | B15: All | C15: All | D15: =SUM(D13:D14) -> 0.2116403449
A17: Table 4 - ERG Network and Non-network Overheads
A18: DNSP | B18: Cost type | C18: Cost recovery | D18: FY2023
A19: Ergon | B19: Network Overhead | C19: All Direct costs + Oncosts | D19: 0.1154435121
A20: Ergon | B20: Non Network Overhead | C20: Labour only | D20: 0.3540204692
A21: Ergon | B21: All | C21: All | D21: =SUM(D19:D20) -> 0.4694639813
A23: Table 5 - ERG Other Allocations
A24: DNSP | B24: Cost type | C24: Cost recovery | D24: FY2023
A25: Ergon | B25: Non Network Depreciation | C25: Labour only | D25: 0.1378194158
A26: Ergon | B26: Corporate Overhead | C26: All Direct Costs + Oncosts | D26: 0.05378833159
A27: Ergon | B27: Market | C27: All Direct Costs + Oncosts | D27: 0.002830549019
A28: Ergon | B28: Customer Ops | C28: All Direct Costs + Oncosts | D28: 0.02858428769
A29: Ergon | B29: All | C29: All | D29: =SUM(D25:D28) -> 0.2230225841

Sheet >>Volumes

Sheet ERG - Yearly volume scenarios
A1: Table 1 - ERG Total public lighting asset base by tariffs to be converted from CONV to LED- yearly data as at 30 June | K1: 100% LED deployment by 2030
A2: 1.a - Number of public lights for LED conversion | E2: Previous period | F2: Current period | K2: Forthcoming period
E3: Actual | F3: Actual | G3: Actual | H3: Forecast | I3: Forecast | J3: Forecast | K3: Forecast | L3: Forecast | M3: Forecast | N3: Forecast | O3: Forecast
A4: DNSP | B4: Rate | C4: Road type | D4: Light type | E4: 2019-20 | F4: 2020-21 | G4: 2021-22 | H4: 2022-23 | I4: 2023-24 | J4: 2024-25 | K4: 2025-26 | L4: 2026-27 | M4: 2027-28 | N4: 2028-29 | O4: 2029-30
A5: Ergon Energy | B5: 1 | C5: Major | D5: CONV | E5: =#REF! ->  | F5: =#REF! ->  | G5: =#REF! ->  | H5: 23678 | I5: 20420 | J5: 16465 | K5: 14454 | L5: 10371 | M5: 7077 | N5: 3972 | O5: 0
A6: Ergon Energy | B6: 1 | C6: Major | D6: LED | E6: =#REF! ->  | F6: =#REF! ->  | G6: =#REF! ->  | H6: 5151 | I6: 8457 | J6: 12461 | K6: 14328 | L6: 18411 | M6: 21705 | N6: 24810 | O6: 28782
A7: Ergon Energy | B7: 1 | C7: Minor | D7: CONV | E7: =#REF! ->  | F7: =#REF! ->  | G7: =#REF! ->  | H7: 47430 | I7: 40904 | J7: 32981 | K7: 28953 | L7: 20775 | M7: 14177 | N7: 7957 | O7: 0 | P7: Removes the Nostalgia as these are to be converted to LED (see Table 3 below)
A8: Ergon Energy | B8: 1 | C8: Minor | D8: LED | E8: =#REF! ->  | F8: =#REF! ->  | G8: =#REF! ->  | H8: 24036 | I8: 30687 | J8: 38737 | K8: 42390 | L8: 50568 | M8: 57166 | N8: 63386 | O8: 71343
A9: Ergon Energy | B9: 2 | C9: Major | D9: CONV | E9: =#REF! ->  | F9: =#REF! ->  | G9: =#REF! ->  | H9: 12445 | I9: 12226 | J9: 11325 | K9: 9942 | L9: 7134 | M9: 4868 | N9: 2732 | O9: 0
A10: Ergon Energy | B10: 2A | C10: Major | D10: LED | E10: =#REF! ->  | F10: =#REF! ->  | G10: =#REF! ->  | H10: 1194 | I10: 1413 | J10: 2314 | K10: 3697 | L10: 6505 | M10: 8771 | N10: 10907 | O10: 13639
A11: Ergon Energy | B11: 2 | C11: Minor | D11: CONV | E11: =#REF! ->  | F11: =#REF! ->  | G11: =#REF! ->  | H11: 29121 | I11: 28608 | J11: 26500 | K11: 21781 | L11: 15629 | M11: 10665 | N11: 5986 | O11: 0 | P11: Removes the Nostalgia as these are to be converted to LED (see Table 3 below)
A12: Ergon Energy | B12: 2A | C12: Minor | D12: LED | E12: =#REF! ->  | F12: =#REF! ->  | G12: =#REF! ->  | H12: 7269 | I12: 7782 | J12: 9890 | K12: 14609 | L12: 20761 | M12: 25725 | N12: 30404 | O12: 36390
A13: Ergon Energy | B13: All | C13: All | D13: CONV | E13: =E5+E7+E9+E11 ->  | H13: 112674 | I13: 102158 | J13: 87271 | K13: 75130 | L13: 53909 | M13: 36787 | N13: 20647 | O13: 0
A14: Ergon Energy | B14: All | C14: All | D14: LED | E14: =E6+E8+E10+E12 ->  | F14: =F6+F8+F10+F12 ->  | H14: 37650 | I14: 48339 | J14: 63402 | K14: 75024 | L14: 96245 | M14: 113367 | N14: 129507 | O14: 150154
A15: Ergon Energy | B15: All | C15: All | D15: All | E15: =E13+E14 ->  | F15: =F13+F14 ->  | H15: 150324 | I15: 150497 | J15: 150673 | K15: =SUM(K5:K12) -> 150154 | L15: =SUM(L5:L12) -> 150154 | M15: =SUM(M5:M12) -> 150154 | N15: =SUM(N5:N12) -> 150154 | O15: =SUM(O5:O12) -> 150154
A16: Ergon Energy | B16: All | C16: All | D16: LED | E16: =E14/E15 ->  | F16: =F14/F15 ->  | H16: 0.2504590085 | I16: 0.3211957713 | J16: 0.4207920464 | K16: 0.4996470291 | L16: 0.6409752654 | M16: 0.7550048617 | N16: 0.8624945056 | O16: =O14/O15 -> 1
A17: Note:
A18: CONV Minor volumes exclude Nostalgia volumes which are being converted to LED (see volumes in Table 4)
A19: No growth assumed for CONV to LED conversion program as the conversions are intended for the existing fleet of assets
A20: All Rate 1 CONV lights converted to LED will be assigned to Rate 1 LED
A21: All Rate 2 CONV lights converted to LED and funded by ERG, will be assigned to Rate 2A
K23: 100% LED deployment by 2030
E24: Previous period | F24: Current period | K24: Forthcoming period
A25: Table 1.b - ERG LED luminaire replacement volume/year | E25: Actual | F25: Actual | G25: Actual | H25: Forecast | I25: Forecast | J25: Forecast | K25: Forecast | L25: Forecast | M25: Forecast | N25: Forecast | O25: Forecast
A26: DNSP | B26: Rate | C26: Road type | D26: Light type | E26: 2019-20 | F26: 2020-21 | G26: 2021-22 | H26: 2022-23 | I26: 2023-24 | J26: 2024-25 | K26: 2025-26 | L26: 2026-27 | M26: 2027-28 | N26: 2028-29 | O26: 2029-30
A27: Ergon Energy | B27: 1 | C27: Major | D27: LED | F27: =F6-E6 ->  | I27: 3306 | J27: 4004 | K27: 1867 | L27: 4083 | M27: 3294 | N27: 3105 | O27: 3972
A28: Ergon Energy | B28: 1 | C28: Minor | D28: LED | F28: =F8-E8 ->  | I28: 6651 | J28: 8050 | K28: 3653 | L28: 8178 | M28: 6598 | N28: 6220 | O28: 7957
A29: Ergon Energy | B29: 2A | C29: Major | D29: LED | F29: =F10-E10 ->  | I29: 219 | J29: 901 | K29: 1383 | L29: 2808 | M29: 2266 | N29: 2136 | O29: 2732
A30: Ergon Energy | B30: 2A | C30: Minor | D30: LED | F30: =F12-E12 ->  | I30: 513 | J30: 2108 | K30: 4719 | L30: 6152 | M30: 4964 | N30: 4679 | O30: 5986
A31: Ergon Energy | B31: All | C31: All | D31: LED | F31: =SUM(F27:F30) ->  | I31: 10689 | J31: 15063 | K31: 11622 | L31: 21221 | M31: 17122 | N31: 16140 | O31: 20647
D32: Total LED volume | K32: =J14+K31 -> 75024 | L32: =K14+L31 -> 96245 | M32: =L14+M31 -> 113367 | N32: =M14+N31 -> 129507 | O32: =N14+O31 -> 150154
J33: Check | K33: =K32-K14 -> 0 | L33: =L32-L14 -> 0 | M33: =M32-M14 -> 0 | N33: =N32-N14 -> 0 | O33: =O32-O14 -> 0
C34: Proportions | D34: LED | E34: Rate 1 | F34: =SUM(F27:F28)/SUM(F27:F30) ->  | I34: 0.9315183834 | J34: 0.8002389962 | K34: =SUM(K27:K28)/SUM(K27:K30) -> 0.4749612803 | L34: 0.5777767306 | M34: 0.5777362458 | N34: 0.5777571252 | O34: 0.5777594808
E35: Rate2A | F35: =1-F34 ->  | I35: 0.06848161662 | J35: 0.1997610038 | K35: =1-K34 -> 0.5250387197 | L35: 0.4222232694 | M35: =1-M34 -> 0.4222637542 | N35: =1-N34 -> 0.4222428748 | O35: =1-O34 -> 0.4222405192
K37: 100% LED deployment by 2030
K38: Forthcoming period
A39: Table 1.c - ERG smoothed LED luminaire replacement volume/year | K39: Forecast | L39: Forecast | M39: Forecast | N39: Forecast | O39: Forecast
A40: DNSP | B40: Rate | C40: Road type | D40: Light type | K40: 2025-26 | L40: 2026-27 | M40: 2027-28 | N40: 2028-29 | O40: 2029-30
A41: Ergon Energy | B41: 1 | C41: Major | D41: LED | K41: =ROUND(SUM($K27:$O27)/5,0) -> 3264 | L41: 3264 | M41: 3264 | N41: 3264 | O41: 3264
A42: Ergon Energy | B42: 1 | C42: Minor | D42: LED | K42: 6521 | L42: 6521 | M42: 6521 | N42: 6521 | O42: 6521
A43: Ergon Energy | B43: 2A | C43: Major | D43: LED | K43: 2265 | L43: 2265 | M43: 2265 | N43: 2265 | O43: 2265
A44: Ergon Energy | B44: 2A | C44: Minor | D44: LED | K44: 5300 | L44: 5300 | M44: 5300 | N44: 5300 | O44: 5300
A45: Ergon Energy | B45: All | C45: All | D45: LED | K45: =SUM(K41:K44) -> 17350 | L45: =SUM(L41:L44) -> 17350 | M45: =SUM(M41:M44) -> 17350 | N45: =SUM(N41:N44) -> 17350 | O45: =SUM(O41:O44) -> 17350
A46: Note:
A47: This table is based on Table 2 and smoothes the number of lights being converted a consistent yearly deployment
K50: 100% LED deployment by 2030
K51: Forthcoming period
A52: 2 - New intallations | E52: Actual | F52: Actual | G52: Actual | H52: Forecast | I52: Forecast | J52: Forecast | K52: Forecast | L52: Forecast | M52: Forecast | N52: Forecast | O52: Forecast
A53: DNSP | B53: Rate | C53: Road type | D53: Light type | E53: 2019-20 | F53: 2020-21 | G53: 2021-22 | H53: 2022-23 | I53: 2023-24 | J53: 2024-25 | K53: 2025-26 | L53: 2026-27 | M53: 2027-28 | N53: 2028-29 | O53: 2029-30
A54: Ergon Energy | B54: 1 | C54: Major | D54: LED | E54: 47.10785166 | F54: 31.9906864 | G54: 59.02817001 | H54: =ROUND(AVERAGE(E54:G54)*(1+'Ratios & Assumptions'!$D$13),0) -> 47 | I54: =ROUND(H54*(1+'Ratios & Assumptions'!$D$13),0) -> 48 | J54: =ROUND(I54*(1+'Ratios & Assumptions'!$D$13),0) -> 49 | K54: =ROUND(J54*(1+'Ratios & Assumptions'!$D$13),0) -> 50 | L54: =ROUND(K54*(1+'Ratios & Assumptions'!$D$13),0) -> 51 | M54: =ROUND(L54*(1+'Ratios & Assumptions'!$D$13),0) -> 52 | N54: =ROUND(M54*(1+'Ratios & Assumptions'!$D$13),0) -> 53 | O54: =ROUND(N54*(1+'Ratios & Assumptions'!$D$13),0) -> 54
A55: Ergon Energy | B55: 1 | C55: Minor | D55: LED | E55: 113.3354909 | F55: 133.0851558 | G55: 116.5221267 | H55: =ROUND(AVERAGE(E55:G55)*(1+'Ratios & Assumptions'!$D$14),0) -> 123 | I55: =ROUND(H55*(1+'Ratios & Assumptions'!$D$14),0) -> 125 | J55: =ROUND(I55*(1+'Ratios & Assumptions'!$D$14),0) -> 127 | K55: =ROUND(J55*(1+'Ratios & Assumptions'!$D$14),0) -> 129 | L55: =ROUND(K55*(1+'Ratios & Assumptions'!$D$14),0) -> 131 | M55: =ROUND(L55*(1+'Ratios & Assumptions'!$D$14),0) -> 133 | N55: =ROUND(M55*(1+'Ratios & Assumptions'!$D$14),0) -> 135 | O55: =ROUND(N55*(1+'Ratios & Assumptions'!$D$14),0) -> 137
A56: Ergon Energy | B56: All | C56: All | D56: LED | E56: =SUM(E54:E55) -> 160.4433426 | F56: 165.0758422 | G56: 175.5502967 | H56: 170 | I56: 173 | J56: 176 | K56: 179 | L56: 182 | M56: 185 | N56: 188 | O56: 191
A57: Notes:
A58: All new installations are assumed to be LEDs
A59: Actual figures (2019-20 to 2021-22) are sourced from the RIN
K60: 100% LED deployment by 2030
K61: Forthcoming period
A62: 3 - Conversion of Nostalgia lights from CONV to LED | E62: Actual | F62: Actual | G62: Actual | H62: Forecast | I62: Forecast | J62: Forecast | K62: Forecast | L62: Forecast | M62: Forecast | N62: Forecast | O62: Forecast
A63: DNSP | B63: Rate | C63: Road type | D63: Light type | E63: 2019-20 | F63: 2020-21 | G63: 2021-22 | H63: 2022-23 | I63: 2023-24 | J63: 2024-25 | K63: 2025-26 | L63: 2026-27 | M63: 2027-28 | N63: 2028-29 | O63: 2029-30
A64: Ergon Energy | B64: 1 | C64: Minor | D64: LED | K64: =ROUND(J64*(1+'Ratios & Assumptions'!$D$13),0) -> 0 | L64: =ROUND(K64*(1+'Ratios & Assumptions'!$D$13),0) -> 0 | M64: =ROUND(L64*(1+'Ratios & Assumptions'!$D$13),0) -> 0 | N64: =ROUND(M64*(1+'Ratios & Assumptions'!$D$13),0) -> 0 | O64: =ROUND(N64*(1+'Ratios & Assumptions'!$D$13),0) -> 0 | P64: No Rate 1 Nostalgia lights
B65: 2A | C65: Minor | D65: LED | K65: 1483 | L65: 1483 | M65: 1483 | N65: 1483 | O65: 1483
A66: Ergon Energy | B66: All | C66: Minor | D66: LED | K66: =SUM(K64:K65) -> 1483 | L66: 1483 | M66: 1483 | N66: 1483 | O66: 1483
A67: Notes: | J67: Sum | O67: =SUM(K66:O66) -> 7415
A68: Convert remaining 7,415 Nostalgia lamps to LEDs over the 2025-30 period
A69: Existing Rate 2 Nostalgia lights converted to LED and funded by Ergon. Once converted the assets are assigned to Rate 2A
A71: 4 - Total public lighting asset base (table 1.a, table 2 and table 3 combined) | K71: 100% LED deployment by 2030
K72: Forthcoming period
E73: Actual | F73: Actual | G73: Actual | H73: Forecast | I73: Forecast | J73: Forecast | K73: Forecast | L73: Forecast | M73: Forecast | N73: Forecast | O73: Forecast
A74: DNSP | B74: Rate | C74: Road type | D74: Light type | E74: 2019-20 | F74: 2020-21 | G74: 2021-22 | H74: 2022-23 | I74: 2023-24 | J74: 2024-25 | K74: 2025-26 | L74: 2026-27 | M74: 2027-28 | N74: 2028-29 | O74: 2029-30
A75: Ergon Energy | B75: 1 | C75: Major | D75: CONV | F75: =F5 ->  | H75: 23678 | I75: 20420 | J75: 16465 | K75: 14454 | L75: 10371 | M75: 7077 | N75: 3972 | O75: 0
A76: Ergon Energy | B76: 1 | C76: Major | D76: LED | F76: =F6+F54 ->  | G76: =G6+G54 ->  | H76: =H6+H54 -> 5198 | I76: =I6+SUM(H54:I54) -> 8552 | J76: =J6+SUM(H54:J54) -> 12605 | K76: =K6+K54 -> 14378 | L76: =L6+SUM(K54:L54) -> 18512 | M76: =M6+SUM(K54:M54) -> 21858 | N76: =N6+SUM(K54:N54) -> 25016 | O76: =O6+SUM(K54:O54) -> 29042
A77: Ergon Energy | B77: 1 | C77: Minor | D77: CONV | F77: =F7 ->  | H77: 47430 | I77: 40904 | J77: 32981 | K77: 28953 | L77: 20775 | M77: 14177 | N77: 7957 | O77: 0
A78: Ergon Energy | B78: 1 | C78: Minor | D78: LED | F78: =F8+F55 ->  | G78: =G8+G55 ->  | H78: =H8+H55 -> 24159 | I78: =I8+SUM(H55:I55) -> 30935 | J78: =J8+SUM(H55:J55) -> 39112 | K78: =K8+K55+K64 -> 42519 | L78: =L8+SUM(K55:L55)+L64 -> 50828 | M78: =M8+SUM(K55:M55)+M64 -> 57559 | N78: =N8+SUM(K55:N55)+N64 -> 63914 | O78: =O8+SUM(K55:O55)+O64 -> 72008
A79: Ergon Energy | B79: 2 | C79: Major | D79: CONV | F79: =F9 ->  | H79: 12445 | I79: 12226 | J79: 11325 | K79: 9942 | L79: 7134 | M79: 4868 | N79: 2732 | O79: 0
A80: Ergon Energy | B80: 2A | C80: Major | D80: LED | F80: =F10 ->  | H80: 1194 | I80: =I10 -> 1413 | J80: 2314 | K80: =K10 -> 3697 | L80: 6505 | M80: 8771 | N80: 10907 | O80: 13639
A81: Ergon Energy | B81: 2 | C81: Minor | D81: CONV | H81: 29121 | I81: =I11 -> 28608 | J81: =J11 -> 26500 | K81: =K11 -> 21781 | L81: =L11 -> 15629 | M81: =M11 -> 10665 | N81: =N11 -> 5986 | O81: 0
A82: Ergon Energy | B82: 2A | C82: Minor | D82: LED | H82: 7269 | I82: =I12 -> 7782 | J82: 9890 | K82: =K12+K65 -> 16092 | L82: =L12+L65 -> 22244 | M82: =M12+M65 -> 27208 | N82: 31887 | O82: 37873
A83: Ergon Energy | B83: All | C83: All | D83: CONV | F83: =SUMIF($D$75:$D$82,$D83,F$75:F$82) ->  | H83: 112674 | I83: 102158 | J83: 87271 | K83: 75130 | L83: 53909 | M83: 36787 | N83: 20647 | O83: 0
A84: Ergon Energy | B84: All | C84: All | D84: LED | H84: 37820 | I84: 48682 | J84: 63921 | K84: 76686 | L84: 98089 | M84: 115396 | N84: 131724 | O84: =SUMIF($D$75:$D$82,$D84,O$75:O$82) -> 152562
A85: Ergon Energy | B85: All | C85: All | D85: All | F85: =SUM(F83:F84) ->  | G85: =SUM(G83:G84) ->  | H85: 150494 | I85: 150840 | J85: 151192 | K85: 151816 | L85: 151998 | M85: 152183 | N85: 152371 | O85: 152562
J86: Check | K86: =IF(K15+K56+K66-K85=0,0,1) -> 0 | L86: =IF(L15+SUM(K56,L56)+L66-L85=0,0,1) -> 0 | M86: =IF(M15+SUM(K56:M56)+M66-M85=0,0,1) -> 0 | N86: =IF(N15+SUM(K56:N56)+N66-N85=0,0,1) -> 0 | O86: =IF(O15+SUM(K56:O56)+O66-O85=0,0,1) -> 0
A87: Proportion | B87: LED | C87: Rate 1 | F87: =((F76-E76)+(F78-E78))/((F76-E76)+(F78-E78)+(F80-E80)+(F82-E82)) ->  | I87: 0.9326090959 | J87: 0.8025460988 | K87: 0.4057971014 | L87: 0.5813670981 | M87: 0.5822499567 | N87: 0.5826188143 | O87: 0.5816297149
C88: Rate2A | F88: =1-F87 ->  | I88: 0.06739090407 | J88: 0.1974539012 | K88: =1-K87 -> 0.5942028986 | L88: =1-L87 -> 0.4186329019 | M88: 0.4177500433 | N88: 0.4173811857 | O88: 0.4183702851
A89: Note:
A90: No to little growth assumed in Table 4 as the capex is for the conversion to LED of existing light population. Growth of 2.5% is included in Table 5
A91: Customer funded new installations removed from the Rate 2A tariff and included in Table 5 below to be treated separately
A94: Table 5 - Rate 2 customer contributed assets | K94: 100% LED deployment by 2030
E95: Previous period | F95: Current period | K95: Forthcoming period
E96: Actual | F96: Actual | G96: Actual | H96: Forecast | I96: Forecast | J96: Forecast | K96: Forecast | L96: Forecast | M96: Forecast | N96: Forecast | O96: Forecast
A97: DNSP | B97: Rate | C97: Road type | D97: Light type | E97: 2019-20 | F97: 2020-21 | G97: 2021-22 | H97: 2022-23 | I97: 2023-24 | J97: 2024-25 | K97: 2025-26 | L97: 2026-27 | M97: 2027-28 | N97: 2028-29 | O97: 2029-30
A98: New installations and new subdivisions
A99: Ergon Energy | B99: 2 | C99: Major | D99: LED | F99: =ROUND(F80*'Ratios & Assumptions'!$C$21,0) ->  | G99: =ROUND(G80*'Ratios & Assumptions'!$C$21,0) ->  | H99: =ROUND(H80*'Ratios & Assumptions'!$C$21,0) -> 73 | I99: =ROUND(I80*'Ratios & Assumptions'!$C$21,0) -> 86 | J99: =ROUND(J80*'Ratios & Assumptions'!$C$21,0) -> 141 | K99: =ROUND(J99*(1+'Ratios & Assumptions'!$D$13),0) -> 145 | L99: =ROUND(K99*(1+'Ratios & Assumptions'!$D$13),0) -> 149 | M99: =ROUND(L99*(1+'Ratios & Assumptions'!$D$13),0) -> 153 | N99: =ROUND(M99*(1+'Ratios & Assumptions'!$D$13),0) -> 157 | O99: =ROUND(N99*(1+'Ratios & Assumptions'!$D$13),0) -> 161
A100: Ergon Energy | B100: 2 | C100: Minor | D100: LED | F100: =ROUND(F82*'Ratios & Assumptions'!$C$22,0) ->  | G100: =ROUND(G82*'Ratios & Assumptions'!$C$22,0) ->  | H100: =ROUND(H82*'Ratios & Assumptions'!$C$22,0) -> 296 | I100: =ROUND(I82*'Ratios & Assumptions'!$C$22,0) -> 317 | J100: =ROUND(J82*'Ratios & Assumptions'!$C$22,0) -> 403 | K100: =ROUND(J100*(1+'Ratios & Assumptions'!$D$13),0) -> 413 | L100: =ROUND(K100*(1+'Ratios & Assumptions'!$D$13),0) -> 423 | M100: =ROUND(L100*(1+'Ratios & Assumptions'!$D$13),0) -> 434 | N100: =ROUND(M100*(1+'Ratios & Assumptions'!$D$13),0) -> 445 | O100: =ROUND(N100*(1+'Ratios & Assumptions'!$D$13),0) -> 456
A101: Rate 4 reassigned to Rate 2 on 1 July 2025
A102: Ergon Energy | B102: 4 | C102: Major | D102: LED | F102: =#REF! ->  | G102: =#REF! ->  | H102: 35 | I102: 36 | J102: 39 | K102: =$J$102 -> 39 | L102: =$J$102 -> 39 | M102: 39 | N102: 39 | O102: 39
A103: Ergon Energy | B103: 4 | C103: Minor | D103: LED | F103: =#REF! ->  | G103: =#REF! ->  | H103: 18 | I103: 18 | J103: 19 | K103: =$J$103 -> 19 | L103: =$J$103 -> 19 | M103: 19 | N103: 19 | O103: 19
A104: All | B104: 2 | C104: Major | D104: LED | F104: =F99 ->  | G104: =G99 ->  | H104: 73 | I104: 86 | J104: 141 | K104: =K99+K102 -> 184 | L104: =L99+L102 -> 188 | M104: 192 | N104: 196 | O104: 200
B105: 2 | C105: Minor | D105: LED | F105: =F100 ->  | G105: =G100 ->  | H105: 296 | I105: 317 | J105: 403 | K105: =K100+K103 -> 432 | L105: =L100+L103 -> 442 | M105: 453 | N105: 464 | O105: 475
A106: All | B106: 2 | C106: All | D106: LED | F106: =F104+F105 ->  | H106: 369 | I106: 403 | J106: 544 | K106: 616 | L106: 630 | M106: 645 | N106: 660 | O106: 675
A107: Notes:
A108: Historical 2019-20 to 2022-23 figures for Other Contributed assets, based on internal reports between 2019-20 to 2020-21, growth is relatively modest
A109: Historical 2019-20 to 2022-23 figures for New Installations based on RIN data
A110: Forecast growth rate of 2.5%

Sheet >>Unit Rates

Sheet ERG Unit Rates
A1: Table 1: Ergon Energy Public Light - Unit costs per luminaire
D2: Unit cost
A3: Activity type | B3: Asset type | C3: Cost categories | D3: $2022-30
D4: Actual
A5: Light installation | B5: steel underground decorative minor (typically Rate 2) | C5: Labour | D5: N/A
C6: Material | D6: N/A
C7: Contractor | D7: N/A
B8: steel underground minor | C8: Labour | D8: N/A
C9: Material | D9: N/A
C10: Contractor | D10: N/A
B11: Rate 1 Major LED install | C11: Labour | D11: 14745.4861
C12: Material | D12: 9330.205016
C13: Contractor | D13: 7769.165899
B14: Rate 1 Minor LED install | C14: Labour | D14: 3459.300804
C15: Material | D15: 882.7597103
C16: Contractor | D16: 1822.651465
B17: High Pressure Sodium - Major (Rate 1 and 2) Change to Rate 2 Major LED Install | C17: Labour | D17: 0
C18: Material | D18: 0
C19: Contractor | D19: 0
B20: High Pressure Sodium - Minor Change to Rate 2 Minor LED Install | C20: Labour | D20: 0
C21: Material | D21: 0
C22: Contractor | D22: 0
A23: Light replacement | B23: LED Major | C23: Labour | D23: 0
C24: Material | D24: 584
C25: Contractor | D25: 125
B26: LED Minor | C26: Labour | D26: 0
C27: Material | D27: 197
C28: Contractor | D28: 125
B29: Nostalgia LED | C29: Labour | D29: 0
C30: Material | D30: 690.66
C31: Contractor | D31: 295

Sheet >>Forecast capex

Sheet ERG - Forecast capex scenarios
A1: Table 1 - ERG Light Replacement Capex - CONV to LED
A2: Real $2022-23 | F2: 100% LED deployment by 2030
F3: Forecast | G3: Forecast | H3: Forecast | I3: Forecast | J3: Forecast
A4: DNSP | B4: Rate | C4: Road type | D4: Light type | E4: Cost category | F4: 2025-26 | G4: 2026-27 | H4: 2027-28 | I4: 2028-29 | J4: 2029-30
A5: Ergon Energy | B5: 1 | C5: Major | D5: LED | E5: Labour | F5: ='ERG Unit Rates'!$D23*'ERG - Yearly volume scenarios'!K$41 -> 0 | G5: ='ERG Unit Rates'!$D23*'ERG - Yearly volume scenarios'!L$41 -> 0 | H5: ='ERG Unit Rates'!$D23*'ERG - Yearly volume scenarios'!M$41 -> 0 | I5: ='ERG Unit Rates'!$D23*'ERG - Yearly volume scenarios'!N$41 -> 0 | J5: ='ERG Unit Rates'!$D23*'ERG - Yearly volume scenarios'!O$41 -> 0
B6: 1 | C6: Major | D6: LED | E6: Material | F6: ='ERG Unit Rates'!$D24*'ERG - Yearly volume scenarios'!K$41 -> 1906176 | G6: ='ERG Unit Rates'!$D24*'ERG - Yearly volume scenarios'!L$41 -> 1906176 | H6: ='ERG Unit Rates'!$D24*'ERG - Yearly volume scenarios'!M$41 -> 1906176 | I6: ='ERG Unit Rates'!$D24*'ERG - Yearly volume scenarios'!N$41 -> 1906176 | J6: ='ERG Unit Rates'!$D24*'ERG - Yearly volume scenarios'!O$41 -> 1906176
B7: 1 | C7: Major | D7: LED | E7: Contractor | F7: ='ERG Unit Rates'!$D25*'ERG - Yearly volume scenarios'!K$41 -> 408000 | G7: ='ERG Unit Rates'!$D25*'ERG - Yearly volume scenarios'!L$41 -> 408000 | H7: ='ERG Unit Rates'!$D25*'ERG - Yearly volume scenarios'!M$41 -> 408000 | I7: ='ERG Unit Rates'!$D25*'ERG - Yearly volume scenarios'!N$41 -> 408000 | J7: ='ERG Unit Rates'!$D25*'ERG - Yearly volume scenarios'!O$41 -> 408000
A8: Ergon Energy | B8: 1 | C8: Minor | D8: LED | E8: Labour | F8: ='ERG Unit Rates'!$D26*'ERG - Yearly volume scenarios'!K$42 -> 0 | G8: ='ERG Unit Rates'!$D26*'ERG - Yearly volume scenarios'!L$42 -> 0 | H8: ='ERG Unit Rates'!$D26*'ERG - Yearly volume scenarios'!M$42 -> 0 | I8: ='ERG Unit Rates'!$D26*'ERG - Yearly volume scenarios'!N$42 -> 0 | J8: ='ERG Unit Rates'!$D26*'ERG - Yearly volume scenarios'!O$42 -> 0
B9: 1 | C9: Minor | D9: LED | E9: Material | F9: ='ERG Unit Rates'!$D27*'ERG - Yearly volume scenarios'!K$42 -> 1284637 | G9: ='ERG Unit Rates'!$D27*'ERG - Yearly volume scenarios'!L$42 -> 1284637 | H9: ='ERG Unit Rates'!$D27*'ERG - Yearly volume scenarios'!M$42 -> 1284637 | I9: ='ERG Unit Rates'!$D27*'ERG - Yearly volume scenarios'!N$42 -> 1284637 | J9: ='ERG Unit Rates'!$D27*'ERG - Yearly volume scenarios'!O$42 -> 1284637
B10: 1 | C10: Minor | D10: LED | E10: Contractor | F10: ='ERG Unit Rates'!$D28*'ERG - Yearly volume scenarios'!K$42 -> 815125 | G10: ='ERG Unit Rates'!$D28*'ERG - Yearly volume scenarios'!L$42 -> 815125 | H10: ='ERG Unit Rates'!$D28*'ERG - Yearly volume scenarios'!M$42 -> 815125 | I10: ='ERG Unit Rates'!$D28*'ERG - Yearly volume scenarios'!N$42 -> 815125 | J10: ='ERG Unit Rates'!$D28*'ERG - Yearly volume scenarios'!O$42 -> 815125
A11: Ergon Energy | B11: 2A | C11: Major | D11: LED | E11: Labour | F11: ='ERG Unit Rates'!$D23*'ERG - Yearly volume scenarios'!K$43 -> 0 | G11: ='ERG Unit Rates'!$D23*'ERG - Yearly volume scenarios'!L$43 -> 0 | H11: ='ERG Unit Rates'!$D23*'ERG - Yearly volume scenarios'!M$43 -> 0 | I11: ='ERG Unit Rates'!$D23*'ERG - Yearly volume scenarios'!N$43 -> 0 | J11: ='ERG Unit Rates'!$D23*'ERG - Yearly volume scenarios'!O$43 -> 0
B12: 2A | C12: Major | D12: LED | E12: Material | F12: ='ERG Unit Rates'!$D24*'ERG - Yearly volume scenarios'!K$43 -> 1322760 | G12: ='ERG Unit Rates'!$D24*'ERG - Yearly volume scenarios'!L$43 -> 1322760 | H12: ='ERG Unit Rates'!$D24*'ERG - Yearly volume scenarios'!M$43 -> 1322760 | I12: ='ERG Unit Rates'!$D24*'ERG - Yearly volume scenarios'!N$43 -> 1322760 | J12: ='ERG Unit Rates'!$D24*'ERG - Yearly volume scenarios'!O$43 -> 1322760
B13: 2A | C13: Major | D13: LED | E13: Contractor | F13: ='ERG Unit Rates'!$D25*'ERG - Yearly volume scenarios'!K$43 -> 283125 | G13: ='ERG Unit Rates'!$D25*'ERG - Yearly volume scenarios'!L$43 -> 283125 | H13: ='ERG Unit Rates'!$D25*'ERG - Yearly volume scenarios'!M$43 -> 283125 | I13: ='ERG Unit Rates'!$D25*'ERG - Yearly volume scenarios'!N$43 -> 283125 | J13: ='ERG Unit Rates'!$D25*'ERG - Yearly volume scenarios'!O$43 -> 283125
A14: Ergon Energy | B14: 2A | C14: Minor | D14: LED | E14: Labour | F14: ='ERG Unit Rates'!$D26*'ERG - Yearly volume scenarios'!K$44 -> 0 | G14: ='ERG Unit Rates'!$D26*'ERG - Yearly volume scenarios'!L$44 -> 0 | H14: ='ERG Unit Rates'!$D26*'ERG - Yearly volume scenarios'!M$44 -> 0 | I14: ='ERG Unit Rates'!$D26*'ERG - Yearly volume scenarios'!N$44 -> 0 | J14: ='ERG Unit Rates'!$D26*'ERG - Yearly volume scenarios'!O$44 -> 0
B15: 2A | C15: Minor | D15: LED | E15: Material | F15: ='ERG Unit Rates'!$D27*'ERG - Yearly volume scenarios'!K$44 -> 1044100 | G15: ='ERG Unit Rates'!$D27*'ERG - Yearly volume scenarios'!L$44 -> 1044100 | H15: ='ERG Unit Rates'!$D27*'ERG - Yearly volume scenarios'!M$44 -> 1044100 | I15: ='ERG Unit Rates'!$D27*'ERG - Yearly volume scenarios'!N$44 -> 1044100 | J15: ='ERG Unit Rates'!$D27*'ERG - Yearly volume scenarios'!O$44 -> 1044100
B16: 2A | C16: Minor | D16: LED | E16: Contractor | F16: ='ERG Unit Rates'!$D28*'ERG - Yearly volume scenarios'!K$44 -> 662500 | G16: ='ERG Unit Rates'!$D28*'ERG - Yearly volume scenarios'!L$44 -> 662500 | H16: ='ERG Unit Rates'!$D28*'ERG - Yearly volume scenarios'!M$44 -> 662500 | I16: ='ERG Unit Rates'!$D28*'ERG - Yearly volume scenarios'!N$44 -> 662500 | J16: ='ERG Unit Rates'!$D28*'ERG - Yearly volume scenarios'!O$44 -> 662500
A17: Ergon Energy | B17: 1 | C17: All | D17: LED | E17: Labour | F17: =SUMIFS(F$5:F$16,$B$5:$B$16,$B17,$E$5:$E$16,$E17) -> 0 | G17: 0 | H17: 0 | I17: 0 | J17: 0
B18: 1 | C18: All | D18: LED | E18: Material | F18: =SUMIFS(F$5:F$16,$B$5:$B$16,$B18,$E$5:$E$16,$E18) -> 3190813 | G18: 3190813 | H18: 3190813 | I18: 3190813 | J18: 3190813
B19: 1 | C19: All | D19: LED | E19: Contractor | F19: 1223125 | G19: 1223125 | H19: 1223125 | I19: 1223125 | J19: 1223125
A20: Ergon Energy | B20: 2A | C20: All | D20: LED | E20: Labour | F20: 0 | G20: 0 | H20: 0 | I20: 0 | J20: 0
B21: 2A | C21: All | D21: LED | E21: Material | F21: 2366860 | G21: 2366860 | H21: 2366860 | I21: 2366860 | J21: 2366860
B22: 2A | C22: All | D22: LED | E22: Contractor | F22: 945625 | G22: 945625 | H22: 945625 | I22: 945625 | J22: 945625
A23: Ergon Energy | B23: All | C23: All | D23: LED | E23: Labour | F23: =SUMIF($E$5:$E$16,$E23,F$5:F$16) -> 0 | G23: 0 | H23: 0 | I23: 0 | J23: 0
B24: All | C24: All | D24: LED | E24: Material | F24: =SUMIF($E$5:$E$16,$E24,F$5:F$16) -> 5557673 | G24: 5557673 | H24: 5557673 | I24: 5557673 | J24: 5557673
B25: All | C25: All | D25: LED | E25: Contractor | F25: 2168750 | G25: 2168750 | H25: 2168750 | I25: 2168750 | J25: 2168750
A26: Ergon Energy | B26: All | C26: All | D26: LED | E26: All | F26: =SUM(F23:F25) -> 7726423 | G26: 7726423 | H26: 7726423 | I26: 7726423 | J26: 7726423
A28: Table 2 - ERG Light Replacement Capex - CONV to CONV
A29: Real $2022-23 (direct costs) | F29: 100% LED deployment by 2030
F30: Forecast | G30: Forecast | H30: Forecast | I30: Forecast | J30: Forecast
A31: DNSP | B31: Rate | C31: Road Type | D31: Light type | E31: Cost category | F31: 2025-26 | G31: 2026-27 | H31: 2027-28 | I31: 2028-29 | J31: 2029-30
A32: Ergon Energy | B32: 1 | C32: Major | D32: CONV | E32: Labour | F32: 0 | G32: 0 | H32: 0 | I32: 0 | J32: 0 | K32: No like for like replacements for conventional assets for 2025-30
B33: 1 | C33: Major | D33: CONV | E33: Material | F33: 0 | G33: 0 | H33: 0 | I33: 0 | J33: 0 | K33: No like for like replacements for conventional assets for 2025-30
B34: 1 | C34: Major | D34: CONV | E34: Contractor | F34: 0 | G34: 0 | H34: 0 | I34: 0 | J34: 0 | K34: No like for like replacements for conventional assets for 2025-30
A35: Ergon Energy | B35: 1 | C35: Minor | D35: CONV | E35: Labour | F35: 0 | G35: 0 | H35: 0 | I35: 0 | J35: 0 | K35: No like for like replacements for conventional assets for 2025-30
B36: 1 | C36: Minor | D36: CONV | E36: Material | F36: 0 | G36: 0 | H36: 0 | I36: 0 | J36: 0 | K36: No like for like replacements for conventional assets for 2025-30
B37: 1 | C37: Minor | D37: CONV | E37: Contractor | F37: 0 | G37: 0 | H37: 0 | I37: 0 | J37: 0 | K37: No like for like replacements for conventional assets for 2025-30
A38: Ergon Energy | B38: 2 | C38: Major | D38: CONV | E38: Labour | F38: 0 | G38: 0 | H38: 0 | I38: 0 | J38: 0 | K38: No like for like replacements for conventional assets for 2025-30
B39: 2 | C39: Major | D39: CONV | E39: Material | F39: 0 | G39: 0 | H39: 0 | I39: 0 | J39: 0 | K39: No like for like replacements for conventional assets for 2025-30
B40: 2 | C40: Major | D40: CONV | E40: Contractor | F40: 0 | G40: 0 | H40: 0 | I40: 0 | J40: 0 | K40: No like for like replacements for conventional assets for 2025-30
A41: Ergon Energy | B41: 2 | C41: Minor | D41: CONV | E41: Labour | F41: 0 | G41: 0 | H41: 0 | I41: 0 | J41: 0 | K41: No like for like replacements for conventional assets for 2025-30
B42: 2 | C42: Minor | D42: CONV | E42: Material | F42: 0 | G42: 0 | H42: 0 | I42: 0 | J42: 0 | K42: No like for like replacements for conventional assets for 2025-30
B43: 2 | C43: Minor | D43: CONV | E43: Contractor | F43: 0 | G43: 0 | H43: 0 | I43: 0 | J43: 0 | K43: No like for like replacements for conventional assets for 2025-30
A44: Ergon Energy | B44: 1 | C44: All | D44: CONV | E44: Labour | F44: =SUMIFS(F32:F43,$B$32:$B$43,$B44,$E$32:$E$43,$E44) -> 0 | G44: 0 | H44: 0 | I44: 0 | J44: 0
B45: 1 | C45: All | D45: CONV | E45: Material | F45: =SUMIFS(F$32:F$43,$B$32:$B$43,$B45,$E$32:$E$43,$E45) -> 0 | G45: 0 | H45: 0 | I45: 0 | J45: 0
B46: 1 | C46: All | D46: CONV | E46: Contractor | F46: 0 | G46: 0 | H46: 0 | I46: 0 | J46: 0
A47: Ergon Energy | B47: 2 | C47: All | D47: CONV | E47: Labour | F47: 0 | G47: 0 | H47: 0 | I47: 0 | J47: 0
B48: 2 | C48: All | D48: CONV | E48: Material | F48: 0 | G48: 0 | H48: 0 | I48: 0 | J48: 0
B49: 2 | C49: All | D49: CONV | E49: Contractor | F49: 0 | G49: 0 | H49: 0 | I49: 0 | J49: 0
A50: Ergon Energy | B50: All | C50: All | D50: CONV | E50: Labour | F50: =SUMIF($E$32:$E$43,$E50,F$32:F$43) -> 0 | G50: 0 | H50: 0 | I50: 0 | J50: 0
B51: All | C51: All | D51: CONV | E51: Material | F51: =SUMIF($E$32:$E$43,$E51,F$32:F$43) -> 0 | G51: 0 | H51: 0 | I51: 0 | J51: 0
B52: All | C52: All | D52: CONV | E52: Contractor | F52: 0 | G52: 0 | H52: 0 | I52: 0 | J52: 0
A53: Ergon Energy | B53: All | C53: All | D53: CONV | E53: All | F53: =SUM(F50:F52) -> 0 | G53: 0 | H53: 0 | I53: 0 | J53: 0
A54: Note:
A55: Assumed $0 given that we do not have any stocks of conventional lights
A57: Table 3 - ERG Light Installation Capex
A58: Real $2022-23 (direct costs) | F58: 100% LED deployment by 2030
F59: Forecast | G59: Forecast | H59: Forecast | I59: Forecast | J59: Forecast
A60: DNSP | B60: Rate | C60: Road type | D60: Light type | E60: Cost category | F60: 2025-26 | G60: 2026-27 | H60: 2027-28 | I60: 2028-29 | J60: 2029-30
A61: Ergon Energy | B61: 1 | C61: Major | D61: LED | E61: Labour | F61: ='ERG - Yearly volume scenarios'!K$54*'ERG Unit Rates'!$D11 -> 737274.3049 | G61: ='ERG - Yearly volume scenarios'!L$54*'ERG Unit Rates'!$D11 -> 752019.791 | H61: ='ERG - Yearly volume scenarios'!M$54*'ERG Unit Rates'!$D11 -> 766765.2771 | I61: ='ERG - Yearly volume scenarios'!N$54*'ERG Unit Rates'!$D11 -> 781510.7632 | J61: ='ERG - Yearly volume scenarios'!O$54*'ERG Unit Rates'!$D11 -> 796256.2493
B62: 1 | C62: Major | D62: LED | E62: Material | F62: ='ERG - Yearly volume scenarios'!K$54*'ERG Unit Rates'!$D12 -> 466510.2508 | G62: ='ERG - Yearly volume scenarios'!L$54*'ERG Unit Rates'!$D12 -> 475840.4558 | H62: ='ERG - Yearly volume scenarios'!M$54*'ERG Unit Rates'!$D12 -> 485170.6608 | I62: ='ERG - Yearly volume scenarios'!N$54*'ERG Unit Rates'!$D12 -> 494500.8658 | J62: ='ERG - Yearly volume scenarios'!O$54*'ERG Unit Rates'!$D12 -> 503831.0709
B63: 1 | C63: Major | D63: LED | E63: Contractor | F63: ='ERG - Yearly volume scenarios'!K$54*'ERG Unit Rates'!$D13 -> 388458.295 | G63: ='ERG - Yearly volume scenarios'!L$54*'ERG Unit Rates'!$D13 -> 396227.4609 | H63: ='ERG - Yearly volume scenarios'!M$54*'ERG Unit Rates'!$D13 -> 403996.6268 | I63: ='ERG - Yearly volume scenarios'!N$54*'ERG Unit Rates'!$D13 -> 411765.7927 | J63: ='ERG - Yearly volume scenarios'!O$54*'ERG Unit Rates'!$D13 -> 419534.9586
A64: Ergon Energy | B64: 1 | C64: Minor | D64: LED | E64: Labour | F64: ='ERG - Yearly volume scenarios'!K$55*'ERG Unit Rates'!$D14 -> 446249.8037 | G64: ='ERG - Yearly volume scenarios'!L$55*'ERG Unit Rates'!$D14 -> 453168.4053 | H64: ='ERG - Yearly volume scenarios'!M$55*'ERG Unit Rates'!$D14 -> 460087.0069 | I64: ='ERG - Yearly volume scenarios'!N$55*'ERG Unit Rates'!$D14 -> 467005.6085 | J64: ='ERG - Yearly volume scenarios'!O$55*'ERG Unit Rates'!$D14 -> 473924.2101
B65: 1 | C65: Minor | D65: LED | E65: Material | F65: ='ERG - Yearly volume scenarios'!K$55*'ERG Unit Rates'!$D15 -> 113876.0026 | G65: ='ERG - Yearly volume scenarios'!L$55*'ERG Unit Rates'!$D15 -> 115641.5221 | H65: ='ERG - Yearly volume scenarios'!M$55*'ERG Unit Rates'!$D15 -> 117407.0415 | I65: ='ERG - Yearly volume scenarios'!N$55*'ERG Unit Rates'!$D15 -> 119172.5609 | J65: ='ERG - Yearly volume scenarios'!O$55*'ERG Unit Rates'!$D15 -> 120938.0803
B66: 1 | C66: Minor | D66: LED | E66: Contractor | F66: ='ERG - Yearly volume scenarios'!K$55*'ERG Unit Rates'!$D16 -> 235122.039 | G66: ='ERG - Yearly volume scenarios'!L$55*'ERG Unit Rates'!$D16 -> 238767.3419 | H66: ='ERG - Yearly volume scenarios'!M$55*'ERG Unit Rates'!$D16 -> 242412.6448 | I66: ='ERG - Yearly volume scenarios'!N$55*'ERG Unit Rates'!$D16 -> 246057.9478 | J66: ='ERG - Yearly volume scenarios'!O$55*'ERG Unit Rates'!$D16 -> 249703.2507
A67: Ergon Energy | B67: 2A | C67: Major | D67: LED | E67: Labour | F67: 0 | G67: 0 | H67: 0 | I67: 0 | J67: 0 | K67: Assumes customers or real estate developers are funding the upfront capex to install new lights
B68: 2A | C68: Major | D68: LED | E68: Material | F68: 0 | G68: 0 | H68: 0 | I68: 0 | J68: 0 | K68: Assumes customers or real estate developers are funding the upfront capex to install new lights
B69: 2A | C69: Major | D69: LED | E69: Contractor | F69: 0 | G69: 0 | H69: 0 | I69: 0 | J69: 0 | K69: Assumes customers or real estate developers are funding the upfront capex to install new lights
A70: Ergon Energy | B70: 2A | C70: Minor | D70: LED | E70: Labour | F70: 0 | G70: 0 | H70: 0 | I70: 0 | J70: 0 | K70: Assumes customers or real estate developers are funding the upfront capex to install new lights
B71: 2A | C71: Minor | D71: LED | E71: Material | F71: 0 | G71: 0 | H71: 0 | I71: 0 | J71: 0 | K71: Assumes customers or real estate developers are funding the upfront capex to install new lights
B72: 2A | C72: Minor | D72: LED | E72: Contractor | F72: 0 | G72: 0 | H72: 0 | I72: 0 | J72: 0 | K72: Assumes customers or real estate developers are funding the upfront capex to install new lights
A73: Ergon Energy | B73: 1 | C73: All | D73: LED | E73: Labour | F73: =SUMIFS(F$61:F$72,$B$61:$B$72,$B73,$E$61:$E$72,$E73) -> 1183524.109 | G73: 1205188.196 | H73: 1226852.284 | I73: 1248516.372 | J73: 1270180.459
B74: 1 | C74: All | D74: LED | E74: Material | F74: =SUMIFS(F$61:F$72,$B$61:$B$72,$B74,$E$61:$E$72,$E74) -> 580386.2534 | G74: 591481.9779 | H74: 602577.7023 | I74: 613673.4267 | J74: 624769.1512
B75: 1 | C75: All | D75: LED | E75: Contractor | F75: 623580.334 | G75: 634994.8028 | H75: 646409.2716 | I75: 657823.7404 | J75: 669238.2093
A76: Ergon Energy | B76: 2A | C76: All | D76: LED | E76: Labour | F76: 0 | G76: 0 | H76: 0 | I76: 0 | J76: 0
B77: 2A | C77: All | D77: LED | E77: Material | F77: 0 | G77: 0 | H77: 0 | I77: 0 | J77: 0
B78: 2A | C78: All | D78: LED | E78: Contractor | F78: 0 | G78: 0 | H78: 0 | I78: 0 | J78: 0
A79: Ergon Energy | B79: All | C79: All | D79: All | E79: Labour | F79: =SUMIF($E$61:$E$72,$E79,F$61:F$72) -> 1183524.109 | G79: 1205188.196 | H79: 1226852.284 | I79: 1248516.372 | J79: 1270180.459
B80: All | C80: All | D80: All | E80: Material | F80: =SUMIF($E$61:$E$72,$E80,F$61:F$72) -> 580386.2534 | G80: 591481.9779 | H80: 602577.7023 | I80: 613673.4267 | J80: 624769.1512
B81: All | C81: All | D81: All | E81: Contractor | F81: 623580.334 | G81: 634994.8028 | H81: 646409.2716 | I81: 657823.7404 | J81: 669238.2093
A82: Ergon Energy | B82: All | C82: All | D82: All | E82: All | F82: =SUM(F79:F81) -> 2387490.696 | G82: 2431664.977 | H82: 2475839.258 | I82: 2520013.539 | J82: 2564187.82
A85: Table 4 - ERG Nostalgia Replacement Capex
A86: Real $2022-23 (direct costs) | F86: 100% LED deployment by 2030
F87: Forecast | G87: Forecast | H87: Forecast | I87: Forecast | J87: Forecast
A88: DNSP | B88: Rate | C88: Road type | D88: Light type | E88: Cost category | F88: 2025-26 | G88: 2026-27 | H88: 2027-28 | I88: 2028-29 | J88: 2029-30
A89: Ergon Energy | B89: 1 | C89: Minor | D89: LED | E89: Labour | F89: ='ERG - Yearly volume scenarios'!K$64*'ERG Unit Rates'!$D29 -> 0 | G89: ='ERG - Yearly volume scenarios'!L$64*'ERG Unit Rates'!$D29 -> 0 | H89: ='ERG - Yearly volume scenarios'!M$64*'ERG Unit Rates'!$D29 -> 0 | I89: ='ERG - Yearly volume scenarios'!N$64*'ERG Unit Rates'!$D29 -> 0 | J89: ='ERG - Yearly volume scenarios'!O$64*'ERG Unit Rates'!$D29 -> 0
B90: 1 | C90: Minor | D90: LED | E90: Material | F90: ='ERG - Yearly volume scenarios'!K$64*'ERG Unit Rates'!$D30 -> 0 | G90: ='ERG - Yearly volume scenarios'!L$64*'ERG Unit Rates'!$D30 -> 0 | H90: ='ERG - Yearly volume scenarios'!M$64*'ERG Unit Rates'!$D30 -> 0 | I90: ='ERG - Yearly volume scenarios'!N$64*'ERG Unit Rates'!$D30 -> 0 | J90: ='ERG - Yearly volume scenarios'!O$64*'ERG Unit Rates'!$D30 -> 0
B91: 1 | C91: Minor | D91: LED | E91: Contractor | F91: ='ERG - Yearly volume scenarios'!K$64*'ERG Unit Rates'!$D31 -> 0 | G91: ='ERG - Yearly volume scenarios'!L$64*'ERG Unit Rates'!$D31 -> 0 | H91: ='ERG - Yearly volume scenarios'!M$64*'ERG Unit Rates'!$D31 -> 0 | I91: ='ERG - Yearly volume scenarios'!N$64*'ERG Unit Rates'!$D31 -> 0 | J91: ='ERG - Yearly volume scenarios'!O$64*'ERG Unit Rates'!$D31 -> 0
A92: Ergon Energy | B92: 2A | C92: Minor | D92: LED | E92: Labour | F92: ='ERG - Yearly volume scenarios'!K$65*'ERG Unit Rates'!$D29 -> 0 | G92: ='ERG - Yearly volume scenarios'!L$65*'ERG Unit Rates'!$D29 -> 0 | H92: ='ERG - Yearly volume scenarios'!M$65*'ERG Unit Rates'!$D29 -> 0 | I92: ='ERG - Yearly volume scenarios'!N$65*'ERG Unit Rates'!$D29 -> 0 | J92: ='ERG - Yearly volume scenarios'!O$65*'ERG Unit Rates'!$D29 -> 0
B93: 2A | C93: Minor | D93: LED | E93: Material | F93: ='ERG - Yearly volume scenarios'!K$65*'ERG Unit Rates'!$D30 -> 1024248.78 | G93: ='ERG - Yearly volume scenarios'!L$65*'ERG Unit Rates'!$D30 -> 1024248.78 | H93: ='ERG - Yearly volume scenarios'!M$65*'ERG Unit Rates'!$D30 -> 1024248.78 | I93: ='ERG - Yearly volume scenarios'!N$65*'ERG Unit Rates'!$D30 -> 1024248.78 | J93: ='ERG - Yearly volume scenarios'!O$65*'ERG Unit Rates'!$D30 -> 1024248.78
B94: 2A | C94: Minor | D94: LED | E94: Contractor | F94: ='ERG - Yearly volume scenarios'!K$65*'ERG Unit Rates'!$D31 -> 437485 | G94: ='ERG - Yearly volume scenarios'!L$65*'ERG Unit Rates'!$D31 -> 437485 | H94: ='ERG - Yearly volume scenarios'!M$65*'ERG Unit Rates'!$D31 -> 437485 | I94: ='ERG - Yearly volume scenarios'!N$65*'ERG Unit Rates'!$D31 -> 437485 | J94: ='ERG - Yearly volume scenarios'!O$65*'ERG Unit Rates'!$D31 -> 437485
A95: Ergon Energy | B95: All | C95: All | D95: LED | E95: Labour | F95: =SUMIF($E$89:$E$94,$E95,F$89:F$94) -> 0 | G95: 0 | H95: 0 | I95: 0 | J95: 0
B96: All | C96: All | D96: LED | E96: Material | F96: =SUMIF($E$89:$E$94,$E96,F$89:F$94) -> 1024248.78 | G96: 1024248.78 | H96: 1024248.78 | I96: 1024248.78 | J96: 1024248.78
B97: All | C97: All | D97: LED | E97: Contractor | F97: 437485 | G97: 437485 | H97: 437485 | I97: 437485 | J97: 437485
A98: Ergon Energy | B98: All | C98: All | D98: LED | E98: All | F98: =SUM(F95:F97) -> 1461733.78 | G98: 1461733.78 | H98: 1461733.78 | I98: 1461733.78 | J98: 1461733.78
A101: Table 5 - ERG Pole Replacement Capex
A102: Real $2022-23 (direct costs) | F102: 100% LED deployment by 2030
F103: Forecast | G103: Forecast | H103: Forecast | I103: Forecast | J103: Forecast
A104: DNSP | B104: Rate | C104: Road type | D104: Light type | E104: Cost category | F104: 2025-26 | G104: 2026-27 | H104: 2027-28 | I104: 2028-29 | J104: 2029-30
A105: Ergon Energy | B105: 1 | C105: Major | D105: All | E105: Labour | F105: 0 | G105: 0 | H105: 0 | I105: 0 | J105: 0
B106: 1 | C106: Major | D106: All | E106: Material | F106: 0 | G106: 0 | H106: 0 | I106: 0 | J106: 0
B107: 1 | C107: Major | D107: All | E107: Contractor | F107: 0 | G107: 0 | H107: 0 | I107: 0 | J107: 0
A108: Ergon Energy | B108: 2 | C108: Minor | D108: All | E108: Labour | F108: 0 | G108: 0 | H108: 0 | I108: 0 | J108: 0
B109: 2 | C109: Minor | D109: All | E109: Material | F109: 0 | G109: 0 | H109: 0 | I109: 0 | J109: 0
B110: 2 | C110: Minor | D110: All | E110: Contractor | F110: 0 | G110: 0 | H110: 0 | I110: 0 | J110: 0
A111: Ergon Energy | B111: All | C111: All | D111: All | E111: Labour | F111: =SUMIF($E$105:$E$110,$E111,F$105:F$110) -> 0 | G111: 0 | H111: 0 | I111: 0 | J111: 0
B112: All | C112: All | D112: All | E112: Material | F112: =SUMIF($E$105:$E$110,$E112,F$105:F$110) -> 0 | G112: 0 | H112: 0 | I112: 0 | J112: 0
B113: All | C113: All | D113: All | E113: Contractor | F113: 0 | G113: 0 | H113: 0 | I113: 0 | J113: 0
B114: All | C114: All | D114: All | E114: All | F114: =SUM(F111:F113) -> 0 | G114: 0 | H114: 0 | I114: 0 | J114: 0
A116: Table 6 - ERG Nominal Public Lighting Capex (Direct costs)
A117: Real $2022-23 (direct costs) | F117: 100% LED deployment by 2030
F118: Forecast | G118: Forecast | H118: Forecast | I118: Forecast | J118: Forecast
A119: DNSP | B119: Rate | C119: Road | D119: Light type | E119: Cost category | F119: 2025-26 | G119: 2026-27 | H119: 2027-28 | I119: 2028-29 | J119: 2029-30
A120: Ergon Energy | B120: 1 | C120: Major | D120: All | E120: Labour | F120: =SUMIFS(F$5:F$114,$B$5:$B$114,$B120,$C$5:$C$114,$C120,$E$5:$E$114,$E120) -> 737274.3049 | G120: 752019.791 | H120: 766765.2771 | I120: 781510.7632 | J120: 796256.2493
B121: 1 | C121: Major | D121: All | E121: Material | F121: 2372686.251 | G121: 2382016.456 | H121: 2391346.661 | I121: 2400676.866 | J121: 2410007.071
B122: 1 | C122: Major | D122: All | E122: Contractor | F122: 796458.295 | G122: 804227.4609 | H122: 811996.6268 | I122: 819765.7927 | J122: 827534.9586
A123: Ergon Energy | B123: 2A | C123: Major | D123: All | E123: Labour | F123: 0 | G123: 0 | H123: 0 | I123: 0 | J123: 0
B124: 2A | C124: Major | D124: All | E124: Material | F124: 1322760 | G124: 1322760 | H124: 1322760 | I124: 1322760 | J124: 1322760
B125: 2A | C125: Major | D125: All | E125: Contractor | F125: 283125 | G125: 283125 | H125: 283125 | I125: 283125 | J125: 283125
A126: Ergon Energy | B126: 1 | C126: Minor | D126: All | E126: Labour | F126: 446249.8037 | G126: 453168.4053 | H126: 460087.0069 | I126: 467005.6085 | J126: 473924.2101
B127: 1 | C127: Minor | D127: All | E127: Material | F127: 1398513.003 | G127: 1400278.522 | H127: 1402044.041 | I127: 1403809.561 | J127: 1405575.08
B128: 1 | C128: Minor | D128: All | E128: Contractor | F128: 1050247.039 | G128: 1053892.342 | H128: 1057537.645 | I128: 1061182.948 | J128: 1064828.251
A129: Ergon Energy | B129: 2A | C129: Minor | D129: All | E129: Labour | F129: 0 | G129: 0 | H129: 0 | I129: 0 | J129: 0
B130: 2A | C130: Minor | D130: All | E130: Material | F130: 2068348.78 | G130: 2068348.78 | H130: 2068348.78 | I130: 2068348.78 | J130: 2068348.78
B131: 2A | C131: Minor | D131: All | E131: Contractor | F131: 1099985 | G131: 1099985 | H131: 1099985 | I131: 1099985 | J131: 1099985
A132: Ergon Energy | B132: 1 | C132: All | D132: All | E132: Labour | F132: =SUMIFS(F$120:F$131,$B$120:$B$131,$B132,$E$120:$E$131,$E132) -> 1183524.109 | G132: 1205188.196 | H132: 1226852.284 | I132: 1248516.372 | J132: 1270180.459
B133: 1 | C133: All | D133: All | E133: Material | F133: =SUMIFS(F$120:F$131,$B$120:$B$131,$B133,$E$120:$E$131,$E133) -> 3771199.253 | G133: 3782294.978 | H133: 3793390.702 | I133: 3804486.427 | J133: 3815582.151
B134: 1 | C134: All | D134: All | E134: Contractor | F134: 1846705.334 | G134: 1858119.803 | H134: 1869534.272 | I134: 1880948.74 | J134: 1892363.209
B135: 2A | C135: All | D135: All | E135: Labour | F135: 0 | G135: 0 | H135: 0 | I135: 0 | J135: 0
B136: 2A | C136: All | D136: All | E136: Material | F136: 3391108.78 | G136: 3391108.78 | H136: 3391108.78 | I136: 3391108.78 | J136: 3391108.78
B137: 2A | C137: All | D137: All | E137: Contractor | F137: 1383110 | G137: 1383110 | H137: 1383110 | I137: 1383110 | J137: 1383110
A138: Ergon Energy | B138: All | C138: All | D138: All | E138: Labour | F138: =SUMIFS(F$5:F$114,$B$5:$B$114,$B138,$C$5:$C$114,$C138,$E$5:$E$114,$E138) -> 1183524.109 | G138: 1205188.196 | H138: 1226852.284 | I138: 1248516.372 | J138: 1270180.459
B139: All | C139: All | D139: All | E139: Material | F139: 7162308.033 | G139: 7173403.758 | H139: 7184499.482 | I139: 7195595.207 | J139: 7206690.931
B140: All | C140: All | D140: All | E140: Contractor | F140: 3229815.334 | G140: 3241229.803 | H140: 3252644.272 | I140: 3264058.74 | J140: 3275473.209
A141: Ergon Energy | B141: All | C141: All | D141: All | E141: All | F141: 11575647.48 | G141: 11619821.76 | H141: 11663996.04 | I141: 11708170.32 | J141: 11752344.6

Sheet ERG - Gross Capex
A1: 1 - This tables shows the RATE 1 and RATE 2A LED capex conversions funded by Ergon
B2: 100% LED deployment by 2030
B3: 2025-26 | C3: 2026-27 | D3: 2027-28 | E3: 2028-29 | F3: 2029-30
A4: Direct Costs ($Real 2024-25)
A5: Labour | B5: ='ERG - Forecast capex scenarios'!F138*'Cost Escalations'!$E$21*(1+'Cost Escalations'!B30) -> 1312417.27 | C5: ='ERG - Forecast capex scenarios'!G138*'Cost Escalations'!$E$21*(1+'Cost Escalations'!C30) -> 1347934.102 | D5: ='ERG - Forecast capex scenarios'!H138*'Cost Escalations'!$E$21*(1+'Cost Escalations'!D30) -> 1380534.347 | E5: ='ERG - Forecast capex scenarios'!I138*'Cost Escalations'!$E$21*(1+'Cost Escalations'!E30) -> 1417556.404 | F5: ='ERG - Forecast capex scenarios'!J138*'Cost Escalations'!$E$21*(1+'Cost Escalations'!F30) -> 1457296.265 | I5: ='ERG - Forecast capex scenarios'!F138*'Cost Escalations'!$E$21*(1+'Cost Escalations'!B30) -> 1312417.27 | J5: ='ERG - Forecast capex scenarios'!F138 -> 1183524.109
A6: Contractors | B6: ='ERG - Forecast capex scenarios'!F140*'Cost Escalations'!$E$21*(1+'Cost Escalations'!B26) -> 3577667.838 | C6: ='ERG - Forecast capex scenarios'!G140*'Cost Escalations'!$E$21*(1+'Cost Escalations'!C26) -> 3615802.863 | D6: ='ERG - Forecast capex scenarios'!H140*'Cost Escalations'!$E$21*(1+'Cost Escalations'!D26) -> 3650670.519 | E6: ='ERG - Forecast capex scenarios'!I140*'Cost Escalations'!$E$21*(1+'Cost Escalations'!E26) -> 3697185.809 | F6: ='ERG - Forecast capex scenarios'!J140*'Cost Escalations'!$E$21*(1+'Cost Escalations'!F26) -> 3750555.183 | I6: ='ERG - Forecast capex scenarios'!F140*'Cost Escalations'!$E$21*(1+'Cost Escalations'!B26) -> 3577667.838 | J6: ='ERG - Forecast capex scenarios'!F140 -> 3229815.334
A7: Materials | B7: ='ERG - Forecast capex scenarios'!F139*'Cost Escalations'!$E$21 -> 7851253.535 | C7: ='ERG - Forecast capex scenarios'!G139*'Cost Escalations'!$E$21 -> 7863416.562 | D7: ='ERG - Forecast capex scenarios'!H139*'Cost Escalations'!$E$21 -> 7875579.589 | E7: ='ERG - Forecast capex scenarios'!I139*'Cost Escalations'!$E$21 -> 7887742.616 | F7: ='ERG - Forecast capex scenarios'!J139*'Cost Escalations'!$E$21 -> 7899905.643 | I7: ='ERG - Forecast capex scenarios'!F139*'Cost Escalations'!$E$21 -> 7851253.535 | J7: ='ERG - Forecast capex scenarios'!F139 -> 7162308.033
A8: Total | B8: =SUM(B5:B7) -> 12741338.64 | C8: 12827153.53 | D8: 12906784.46 | E8: 13002484.83 | F8: 13107757.09 | I8: =SUM(I5:I7) -> 12741338.64 | J8: =SUM(J5:J7) -> 11575647.48
A10: Overheads & Oncosts
A11: Fleet oncost | B11: =B5*Overheads!$D$15 -> 277760.4437 | C11: =C5*Overheads!$D$15 -> 285277.2383 | D11: =D5*Overheads!$D$15 -> 292176.7654 | E11: =E5*Overheads!$D$15 -> 300012.1262 | F11: =F5*Overheads!$D$15 -> 308422.6841
A12: Material oncosts | B12: =B7*Overheads!$D$9 -> 624863.2189 | C12: =C7*Overheads!$D$9 -> 625831.2462 | D12: =D7*Overheads!$D$9 -> 626799.2736 | E12: =E7*Overheads!$D$9 -> 627767.3009 | F12: =F7*Overheads!$D$9 -> 628735.3283
A13: Network overheads | B13: =(B8+B11+B12)*Overheads!$D$19 -> 1575106.927 | C13: =(C8+C11+C12)*Overheads!$D$19 -> 1585993.216 | D13: =(D8+D11+D12)*Overheads!$D$19 -> 1596094.348 | E13: =(E8+E11+E12)*Overheads!$D$19 -> 1608158.63 | F13: =(F8+F11+F12)*Overheads!$D$19 -> 1621394.326
A14: Non-network overheads | B14: =B5*Overheads!$D$20 -> 464622.5778 | C14: =C5*Overheads!$D$20 -> 477196.2634 | D14: =D5*Overheads!$D$20 -> 488737.4174 | E14: =E5*Overheads!$D$20 -> 501843.9833 | F14: =F5*Overheads!$D$20 -> 515912.7075
A15: Non-network depreciation | B15: =B5*Overheads!$D$25 -> 180876.5814 | C15: =C5*Overheads!$D$25 -> 185771.4905 | D15: =D5*Overheads!$D$25 -> 190264.4372 | E15: =E5*Overheads!$D$25 -> 195366.7954 | F15: =F5*Overheads!$D$25 -> 200843.7198
A16: Corporate overheads | B16: =0 -> 0 | C16: =0 -> 0 | D16: =0 -> 0 | E16: =0 -> 0 | F16: =0 -> 0 | H16: No allocation of corporate overheads to capex
A17: Market | B17: =0 -> 0 | C17: =0 -> 0 | D17: =0 -> 0 | E17: =0 -> 0 | F17: =0 -> 0 | H17: No market allocation to capex
A18: Customer ops | B18: =0 -> 0 | C18: =0 -> 0 | D18: =0 -> 0 | E18: =0 -> 0 | F18: =0 -> 0 | H18: No customer operation allocation to capex
A19: Total | B19: =SUM(B11:B18) -> 3123229.749 | C19: 3160069.455 | D19: 3194072.242 | E19: 3233148.835 | F19: 3275308.766
A21: Total Expenditure (incl oncosts and overheads) | B21: =B8+B19 -> 15864568.39 | C21: =C8+C19 -> 15987222.98 | D21: 16100856.7 | E21: 16235633.66 | F21: 16383065.86
B23: 2025-26 | C23: 2026-27 | D23: 2027-28 | E23: 2028-29 | F23: 2029-30
A24: Allocation of total Expenditure (Gross)
A25: LED | B25: =('ERG - Forecast capex scenarios'!F$141-'ERG - Forecast capex scenarios'!F$53)/'ERG - Forecast capex scenarios'!F$141 -> 1 | C25: =('ERG - Forecast capex scenarios'!G$141-'ERG - Forecast capex scenarios'!G$53)/'ERG - Forecast capex scenarios'!G$141 -> 1 | D25: =('ERG - Forecast capex scenarios'!H$141-'ERG - Forecast capex scenarios'!H$53)/'ERG - Forecast capex scenarios'!H$141 -> 1 | E25: =('ERG - Forecast capex scenarios'!I$141-'ERG - Forecast capex scenarios'!I$53)/'ERG - Forecast capex scenarios'!I$141 -> 1 | F25: =('ERG - Forecast capex scenarios'!J$141-'ERG - Forecast capex scenarios'!J$53)/'ERG - Forecast capex scenarios'!J$141 -> 1
A26: CON | B26: =1-B25 -> 0 | C26: =1-C25 -> 0 | D26: 0 | E26: 0 | F26: 0
A28: LED | B28: =B25*B21 -> 15864568.39 | C28: =C25*C21 -> 15987222.98 | D28: 16100856.7 | E28: 16235633.66 | F28: 16383065.86
A29: CON | B29: =B26*B24 -> 0 | C29: =C26*C24 -> 0 | D29: =D26*D24 -> 0 | E29: =E26*E24 -> 0 | F29: =F26*F24 -> 0
A31: Immediate Expensing
A32: LED | B32: =B25*B19 -> 3123229.749 | C32: =C25*C19 -> 3160069.455 | D32: =D25*D19 -> 3194072.242 | E32: =E25*E19 -> 3233148.835 | F32: =F25*F19 -> 3275308.766
A33: CON | B33: =B26*B19 -> 0 | C33: =C26*C19 -> 0 | D33: =D26*D19 -> 0 | E33: =E26*E19 -> 0 | F33: =F26*F19 -> 0
A36: 2 - This table presents RATE 1 LED conversions are funded by customers
B37: 100% LED deployment by 2030
B38: 2025-26 | C38: 2026-27 | D38: 2027-28 | E38: 2028-29 | F38: 2029-30
A39: Direct Costs ($Real 2024-25)
A40: Labour | B40: ='ERG - Forecast capex scenarios'!F132*'Cost Escalations'!$E$21*(1+'Cost Escalations'!B30) -> 1312417.27 | C40: ='ERG - Forecast capex scenarios'!G132*'Cost Escalations'!$E$21*(1+'Cost Escalations'!C30) -> 1347934.102 | D40: ='ERG - Forecast capex scenarios'!H132*'Cost Escalations'!$E$21*(1+'Cost Escalations'!D30) -> 1380534.347 | E40: ='ERG - Forecast capex scenarios'!I132*'Cost Escalations'!$E$21*(1+'Cost Escalations'!E30) -> 1417556.404 | F40: ='ERG - Forecast capex scenarios'!J132*'Cost Escalations'!$E$21*(1+'Cost Escalations'!F30) -> 1457296.265
A41: Contractors | B41: ='ERG - Forecast capex scenarios'!F134*'Cost Escalations'!$E$21*(1+'Cost Escalations'!B26) -> 2045596.295 | C41: ='ERG - Forecast capex scenarios'!G134*'Cost Escalations'!$E$21*(1+'Cost Escalations'!C26) -> 2072853.612 | D41: ='ERG - Forecast capex scenarios'!H134*'Cost Escalations'!$E$21*(1+'Cost Escalations'!D26) -> 2098309.277 | E41: ='ERG - Forecast capex scenarios'!I134*'Cost Escalations'!$E$21*(1+'Cost Escalations'!E26) -> 2130542.844 | F41: ='ERG - Forecast capex scenarios'!J134*'Cost Escalations'!$E$21*(1+'Cost Escalations'!F26) -> 2166835.81 | G41: ='ERG - Forecast capex scenarios'!#REF!*'Cost Escalations'!$E$21*(1+'Cost Escalations'!G26) -> 
A42: Materials | B42: ='ERG - Forecast capex scenarios'!F133*'Cost Escalations'!$E$21 -> 4133952.538 | C42: ='ERG - Forecast capex scenarios'!G133*'Cost Escalations'!$E$21 -> 4146115.565 | D42: ='ERG - Forecast capex scenarios'!H133*'Cost Escalations'!$E$21 -> 4158278.592 | E42: ='ERG - Forecast capex scenarios'!I133*'Cost Escalations'!$E$21 -> 4170441.619 | F42: ='ERG - Forecast capex scenarios'!J133*'Cost Escalations'!$E$21 -> 4182604.646
A43: Total | B43: =SUM(B40:B42) -> 7491966.103 | C43: =SUM(C40:C42) -> 7566903.279 | D43: 7637122.216 | E43: 7718540.866 | F43: 7806736.72
A45: Overheads & Oncosts
A46: Fleet oncost | B46: =B40*Overheads!$D$15 -> 277760.4437 | C46: =C40*Overheads!$D$15 -> 285277.2383 | D46: =D40*Overheads!$D$15 -> 292176.7654 | E46: =E40*Overheads!$D$15 -> 300012.1262 | F46: =F40*Overheads!$D$15 -> 308422.6841
A47: Material oncosts | B47: =B42*Overheads!$D$9 -> 329011.7785 | C47: =C42*Overheads!$D$9 -> 329979.8059 | D47: =D42*Overheads!$D$9 -> 330947.8332 | E47: =E42*Overheads!$D$9 -> 331915.8606 | F47: =F42*Overheads!$D$9 -> 332883.8879
A48: Network overheads | B48: =(B43+B46+B47)*Overheads!$D$19 -> 934946.7954 | C48: =(C43+C46+C47)*Overheads!$D$19 -> 944577.3239 | D48: =(D43+D46+D47)*Overheads!$D$19 -> 953591.9027 | E48: =(E43+E46+E47)*Overheads!$D$19 -> 964007.4517 | F48: =(F43+F46+F47)*Overheads!$D$19 -> 975271.7876
A49: Non-network overheads | B49: =B40*Overheads!$D$20 -> 464622.5778 | C49: =C40*Overheads!$D$20 -> 477196.2634 | D49: =D40*Overheads!$D$20 -> 488737.4174 | E49: =E40*Overheads!$D$20 -> 501843.9833 | F49: =F40*Overheads!$D$20 -> 515912.7075
A50: Non-network depreciation | B50: =B40*Overheads!$D$25 -> 180876.5814 | C50: =C40*Overheads!$D$25 -> 185771.4905 | D50: =D40*Overheads!$D$25 -> 190264.4372 | E50: =E40*Overheads!$D$25 -> 195366.7954 | F50: =F40*Overheads!$D$25 -> 200843.7198
A51: Corporate overheads | B51: 0 | C51: 0 | D51: 0 | E51: 0 | F51: 0 | H51: No allocation of corporate overheads to capex
A52: Market | B52: 0 | C52: 0 | D52: 0 | E52: 0 | F52: 0 | H52: No market allocation to capex
A53: Customer ops | B53: 0 | C53: 0 | D53: 0 | E53: 0 | F53: 0 | H53: No customer operation allocation to capex
A54: Total | B54: =SUM(B46:B53) -> 2187218.177 | C54: =SUM(C46:C53) -> 2222802.122 | D54: =SUM(D46:D53) -> 2255718.356 | E54: =SUM(E46:E53) -> 2293146.217 | F54: =SUM(F46:F53) -> 2333334.787
A56: Total Expenditure | B56: =B43+B54 -> 9679184.28 | C56: 9789705.401 | D56: 9892840.572 | E56: 10011687.08 | F56: 10140071.51
A58: Allocation of total Expenditure (Gross)
A59: LED | B59: =('ERG - Forecast capex scenarios'!F$141-'ERG - Forecast capex scenarios'!F$53)/'ERG - Forecast capex scenarios'!F$141 -> 1 | C59: =('ERG - Forecast capex scenarios'!G$141-'ERG - Forecast capex scenarios'!G$53)/'ERG - Forecast capex scenarios'!G$141 -> 1 | D59: =('ERG - Forecast capex scenarios'!H$141-'ERG - Forecast capex scenarios'!H$53)/'ERG - Forecast capex scenarios'!H$141 -> 1 | E59: =('ERG - Forecast capex scenarios'!I$141-'ERG - Forecast capex scenarios'!I$53)/'ERG - Forecast capex scenarios'!I$141 -> 1 | F59: =('ERG - Forecast capex scenarios'!J$141-'ERG - Forecast capex scenarios'!J$53)/'ERG - Forecast capex scenarios'!J$141 -> 1
A60: CON | B60: =1-B59 -> 0 | C60: =1-C59 -> 0 | D60: 0 | E60: 0 | F60: 0
A62: LED | B62: =B59*B56 -> 9679184.28 | C62: =C59*C56 -> 9789705.401 | D62: =D59*D56 -> 9892840.572 | E62: =E59*E56 -> 10011687.08 | F62: =F59*F56 -> 10140071.51
A63: CON | B63: =B60*B56 -> 0 | C63: 0 | D63: 0 | E63: 0 | F63: 0
A66: 3 - This table presents the RATE 2A capex
B67: 100% LED deployment by 2030
B68: 2025-26 | C68: 2026-27 | D68: 2027-28 | E68: 2028-29 | F68: 2029-30
A69: Direct Costs ($Real 2024-25)
A70: Labour | B70: ='ERG - Forecast capex scenarios'!F135*'Cost Escalations'!$E$21*(1+'Cost Escalations'!B30) -> 0 | C70: ='ERG - Forecast capex scenarios'!G135*'Cost Escalations'!$E$21*(1+'Cost Escalations'!C30) -> 0 | D70: ='ERG - Forecast capex scenarios'!H135*'Cost Escalations'!$E$21*(1+'Cost Escalations'!D30) -> 0 | E70: ='ERG - Forecast capex scenarios'!I135*'Cost Escalations'!$E$21*(1+'Cost Escalations'!E30) -> 0 | F70: ='ERG - Forecast capex scenarios'!J135*'Cost Escalations'!$E$21*(1+'Cost Escalations'!F30) -> 0
A71: Contractors | B71: ='ERG - Forecast capex scenarios'!F137*'Cost Escalations'!$E$21*(1+'Cost Escalations'!B26) -> 1532071.544 | C71: ='ERG - Forecast capex scenarios'!G137*'Cost Escalations'!$E$21*(1+'Cost Escalations'!C26) -> 1542949.251 | D71: ='ERG - Forecast capex scenarios'!H137*'Cost Escalations'!$E$21*(1+'Cost Escalations'!D26) -> 1552361.242 | E71: ='ERG - Forecast capex scenarios'!I137*'Cost Escalations'!$E$21*(1+'Cost Escalations'!E26) -> 1566642.965 | F71: ='ERG - Forecast capex scenarios'!J137*'Cost Escalations'!$E$21*(1+'Cost Escalations'!F26) -> 1583719.374
A72: Materials | B72: ='ERG - Forecast capex scenarios'!F136*'Cost Escalations'!$E$21 -> 3717300.998 | C72: ='ERG - Forecast capex scenarios'!G136*'Cost Escalations'!$E$21 -> 3717300.998 | D72: ='ERG - Forecast capex scenarios'!H136*'Cost Escalations'!$E$21 -> 3717300.998 | E72: ='ERG - Forecast capex scenarios'!I136*'Cost Escalations'!$E$21 -> 3717300.998 | F72: ='ERG - Forecast capex scenarios'!J136*'Cost Escalations'!$E$21 -> 3717300.998 | G72: ='ERG - Forecast capex scenarios'!K136*'Cost Escalations'!$E$21 -> 0
A73: Total | B73: =SUM(B70:B72) -> 5249372.541 | C73: 5260250.249 | D73: 5269662.24 | E73: 5283943.963 | F73: 5301020.371
A75: Overheads & Oncosts
A76: Fleet oncost | B76: =B70*Overheads!$D$15 -> 0 | C76: =C70*Overheads!$D$15 -> 0 | D76: =D70*Overheads!$D$15 -> 0 | E76: =E70*Overheads!$D$15 -> 0 | F76: =F70*Overheads!$D$15 -> 0
A77: Material oncosts | B77: =B72*Overheads!$D$9 -> 295851.4403 | C77: =C72*Overheads!$D$9 -> 295851.4403 | D77: =D72*Overheads!$D$9 -> 295851.4403 | E77: =E72*Overheads!$D$9 -> 295851.4403 | F77: =F72*Overheads!$D$9 -> 295851.4403
A78: Network overheads | B78: =(B73+B76+B77)*Overheads!$D$19 -> 640160.1315 | C78: =(C73+C76+C77)*Overheads!$D$19 -> 641415.8924 | D78: =(D73+D76+D77)*Overheads!$D$19 -> 642502.4456 | E78: =(E73+E76+E77)*Overheads!$D$19 -> 644151.1779 | F78: =(F73+F76+F77)*Overheads!$D$19 -> 646122.5384
A79: Non-network overheads | B79: =B70*Overheads!$D$20 -> 0 | C79: =C70*Overheads!$D$20 -> 0 | D79: =D70*Overheads!$D$20 -> 0 | E79: =E70*Overheads!$D$20 -> 0 | F79: =F70*Overheads!$D$20 -> 0
A80: Non-network depreciation | B80: =B70*Overheads!$D$25 -> 0 | C80: =C70*Overheads!$D$25 -> 0 | D80: =D70*Overheads!$D$25 -> 0 | E80: =E70*Overheads!$D$25 -> 0 | F80: =F70*Overheads!$D$25 -> 0
A81: Corporate overheads | B81: 0 | C81: 0 | D81: 0 | E81: 0 | F81: 0 | H81: No allocation of corporate overheads to capex
A82: Market | B82: 0 | C82: 0 | D82: 0 | E82: 0 | F82: 0 | H82: No market allocation to capex
A83: Customer ops | B83: 0 | C83: 0 | D83: 0 | E83: 0 | F83: 0 | H83: No customer operation allocation to capex
A84: Total | B84: =SUM(B76:B83) -> 936011.5719 | C84: =SUM(C76:C83) -> 937267.3327 | D84: =SUM(D76:D83) -> 938353.8859 | E84: =SUM(E76:E83) -> 940002.6182 | F84: =SUM(F76:F83) -> 941973.9788
A86: Total Expenditure | B86: =B73+B84 -> 6185384.113 | C86: 6197517.582 | D86: 6208016.125 | E86: 6223946.581 | F86: =F73+F84 -> 6242994.35
A88: Allocation of total Expenditure (Gross)
A89: LED | B89: =('ERG - Forecast capex scenarios'!F$141-'ERG - Forecast capex scenarios'!F$53)/'ERG - Forecast capex scenarios'!F$141 -> 1 | C89: =('ERG - Forecast capex scenarios'!G$141-'ERG - Forecast capex scenarios'!G$53)/'ERG - Forecast capex scenarios'!G$141 -> 1 | D89: =('ERG - Forecast capex scenarios'!H$141-'ERG - Forecast capex scenarios'!H$53)/'ERG - Forecast capex scenarios'!H$141 -> 1 | E89: =('ERG - Forecast capex scenarios'!I$141-'ERG - Forecast capex scenarios'!I$53)/'ERG - Forecast capex scenarios'!I$141 -> 1 | F89: =('ERG - Forecast capex scenarios'!J$141-'ERG - Forecast capex scenarios'!J$53)/'ERG - Forecast capex scenarios'!J$141 -> 1
A90: CON | B90: =1-B89 -> 0 | C90: =1-C89 -> 0 | D90: 0 | E90: 0 | F90: 0
A92: LED | B92: =B89*B86 -> 6185384.113 | C92: 6197517.582 | D92: 6208016.125 | E92: 6223946.581 | F92: 6242994.35
A93: CON | B93: =B90*B86 -> 0 | C93: 0 | D93: 0 | E93: 0 | F93: 0
A95: Reconciliation | B95: =B56+B86 -> 15864568.39 | C95: =C56+C86 -> 15987222.98 | D95: =D56+D86 -> 16100856.7 | E95: =E56+E86 -> 16235633.66 | F95: =F56+F86 -> 16383065.86
B96: =B21-B95 -> 0 | C96: =C21-C95 -> 0 | D96: =D21-D95 -> 0 | E96: =E21-E95 -> 0 | F96: =F21-F95 -> 0

Sheet >>Forecast opex

Sheet ERG - Opex BST
A1: Ergon Energy - Factors for the Base Step Trend Approach used to derive forecast opex
A3: Table 1: Forecast Volume of LED and CONV Lights
A4: Volumes | B4: 2021-22 | C4: 2022-23 | D4: 2024-25 | E4: 2025-26 | F4: 2026-27 | G4: 2027-28 | H4: 2028-29 | I4: 2029-30
A5: Conventional | E5: ='ERG - Yearly volume scenarios'!K83 -> 75130 | F5: ='ERG - Yearly volume scenarios'!L83 -> 53909 | G5: ='ERG - Yearly volume scenarios'!M83 -> 36787 | H5: ='ERG - Yearly volume scenarios'!N83 -> 20647 | I5: ='ERG - Yearly volume scenarios'!O83 -> 0
A6: LED | E6: ='ERG - Yearly volume scenarios'!K84+'ERG - Yearly volume scenarios'!K106 -> 77302 | F6: ='ERG - Yearly volume scenarios'!L84+'ERG - Yearly volume scenarios'!L106 -> 98719 | G6: ='ERG - Yearly volume scenarios'!M84+'ERG - Yearly volume scenarios'!M106 -> 116041 | H6: ='ERG - Yearly volume scenarios'!N84+'ERG - Yearly volume scenarios'!N106 -> 132384 | I6: ='ERG - Yearly volume scenarios'!O84+'ERG - Yearly volume scenarios'!O106 -> 153237
A7: Total | E7: =SUM(E5:E6) -> 152432 | F7: =SUM(F5:F6) -> 152628 | G7: =SUM(G5:G6) -> 152828 | H7: =SUM(H5:H6) -> 153031 | I7: =SUM(I5:I6) -> 153237
A9: Table 2: Base Step Trend approach
A10: 2a: Forecast Price Change
A11: Rate | B11: 2021-22 | C11: 2022-23 | D11: 2024-25 | E11: 2025-26 | F11: 2026-27 | G11: 2027-28 | H11: 2028-29 | I11: 2029-30
A12: Labour | E12: ='Cost Escalations'!B29 -> 0.0116 | F12: ='Cost Escalations'!C29 -> 0.0086 | G12: ='Cost Escalations'!D29 -> 0.0061 | H12: ='Cost Escalations'!E29 -> 0.009 | I12: ='Cost Escalations'!F29 -> 0.0105
A13: Contractor | E13: ='Cost Escalations'!B25 -> 0.0105 | F13: ='Cost Escalations'!C25 -> 0.0071 | G13: ='Cost Escalations'!D25 -> 0.0061 | H13: ='Cost Escalations'!E25 -> 0.0092 | I13: ='Cost Escalations'!F25 -> 0.0109
A14: Materials/other | E14: 0 | F14: 0 | G14: 0 | H14: 0 | I14: 0
A16: 2b: Weights
A17: Rate | B17: 2021-22 | C17: 2022-23 | D17: 2024-25 | E17: 2025-26 | F17: 2026-27 | G17: 2027-28 | H17: 2028-29 | I17: 2029-30
A18: Labour | E18: =SUM('ERG - Forecast opex'!C4,'ERG - Forecast opex'!C9)/(SUM('ERG - Forecast opex'!C3:C11)-'ERG - Forecast opex'!C16) -> 0.1777944569 | F18: =E18 -> 0.1777944569 | G18: 0.1777944569 | H18: 0.1777944569 | I18: 0.1777944569
A19: Contractor | E19: =SUM('ERG - Forecast opex'!C5,'ERG - Forecast opex'!C10)/(SUM('ERG - Forecast opex'!C3:C11)-'ERG - Forecast opex'!C16) -> 0.6480013548 | F19: 0.6480013548 | G19: 0.6480013548 | H19: 0.6480013548 | I19: 0.6480013548
A20: Materials/other | E20: =(SUM('ERG - Forecast opex'!C6,'ERG - Forecast opex'!C7,'ERG - Forecast opex'!C11)-'ERG - Forecast opex'!C16)/(SUM('ERG - Forecast opex'!C3:C11)-'ERG - Forecast opex'!C16) -> 0.1742041883 | F20: 0.1742041883 | G20: 0.1742041883 | H20: 0.1742041883 | I20: 0.1742041883
A22: 2c: Price Change
A23: Rate | B23: 2021-22 | C23: 2022-23 | D23: 2024-25 | E23: 2025-26 | F23: 2026-27 | G23: 2027-28 | H23: 2028-29 | I23: 2029-30
A24: Rate | E24: =SUMPRODUCT(E12:E14,E18:E20) -> 0.008866429925 | F24: =SUMPRODUCT(F12:F14,F18:F20) -> 0.006129841948 | G24: =SUMPRODUCT(G12:G14,G18:G20) -> 0.005037354451 | H24: =SUMPRODUCT(H12:H14,H18:H20) -> 0.007561762576 | I24: =SUMPRODUCT(I12:I14,I18:I20) -> 0.008930056564
A26: 2d: Forecast Output Growth
A27: Rate | B27: 2021-22 | C27: 2022-23 | D27: 2024-25 | E27: 2025-26 | F27: 2026-27 | G27: 2027-28 | H27: 2028-29 | I27: 2029-30
A28: Light Population | D28: ='ERG - Yearly volume scenarios'!J85+'ERG - Yearly volume scenarios'!J106 -> 151736 | E28: ='ERG - Yearly volume scenarios'!K85+'ERG - Yearly volume scenarios'!K106 -> 152432 | F28: ='ERG - Yearly volume scenarios'!L85+'ERG - Yearly volume scenarios'!L106 -> 152628 | G28: ='ERG - Yearly volume scenarios'!M85+'ERG - Yearly volume scenarios'!M106 -> 152828 | H28: ='ERG - Yearly volume scenarios'!N85+'ERG - Yearly volume scenarios'!N106 -> 153031 | I28: ='ERG - Yearly volume scenarios'!O85+'ERG - Yearly volume scenarios'!O106 -> 153237
A29: Growth Rate | E29: =LN(E28)-LN(D28) -> 0.004576426282 | F29: =LN(F28)-LN(E28) -> 0.001284993293 | G29: =LN(G28)-LN(F28) -> 0.001309517761 | H29: =LN(H28)-LN(G28) -> 0.00132740923 | I29: =LN(I28)-LN(H28) -> 0.001345227259
A30: Factor | D30: =1-(SUM('ERG - Forecast opex'!C4:C7)/SUM('ERG - Forecast opex'!C3:C12)) -> 0.2742396476 | E30: =SUMPRODUCT($D$30,E29) -> 0.001255037531 | F30: =SUMPRODUCT($D$30,F29) -> 0.0003523961078 | G30: =SUMPRODUCT($D$30,G29) -> 0.0003591216893 | H30: =SUMPRODUCT($D$30,H29) -> 0.0003640282394 | I30: =SUMPRODUCT($D$30,I29) -> 0.0003689146494
A32: 2e: Productivity Factor
A33: Rate | B33: 2021-22 | C33: 2022-23 | D33: 2024-25 | E33: 2025-26 | F33: 2026-27 | G33: 2027-28 | H33: 2028-29 | I33: 2029-30
A34: Rate | D34: 0.04 | E34: =D34 -> 0.04 | F34: =E34 -> 0.04 | G34: 0.04 | H34: 0.04 | I34: 0.04
A36: 2f: Forecast Rate of Change
A37: Rate | B37: 2021-22 | C37: 2022-23 | D37: 2024-25 | E37: 2025-26 | F37: 2026-27 | G37: 2027-28 | H37: 2028-29 | I37: 2029-30
A38: Rate of Change - year on year | E38: =(1+E24)*(1+E30)*(1-E34)-1 -> -0.03027270865 | F38: =(1+F24)*(1+F30)*(1-F34)-1 -> -0.03377497774 | G38: =(1+G24)*(1+G30)*(1-G34)-1 -> -0.03481764624 | H38: =(1+H24)*(1+H30)*(1-H34)-1 -> -0.03238859823 | I38: =(1+I24)*(1+I30)*(1-I34)-1 -> -0.03106982498
A39: Rate of Change - Cummulative | E39: =PRODUCT(1+$D38:E38)-1 -> -0.03027270865 | F39: =PRODUCT(1+$D38:F38)-1 -> -0.06302522633 | G39: =PRODUCT(1+$D38:G38)-1 -> -0.09564848253 | H39: =PRODUCT(1+$D38:H38)-1 -> -0.1249391605 | I39: =PRODUCT(1+$D38:I38)-1 -> -0.1521271476

Sheet ERG - Forecast opex
A1: Table 1 - Opex Direct Costs | B1: Actual
A2: Opex Direct Costs | B2: 2022-23 | C2: 2024-25 | D2: 2025-26 | E2: 2026-27 | F2: 2027-28 | G2: 2028-29 | H2: 2029-30
A3: Maintenance
A4: Labour | B4: 68437.17 | C4: =B4*'Cost Escalations'!$E$21 -> 75020.17093
A5: Contractor | B5: 4774784.03 | C5: =B5*'Cost Escalations'!$E$21 -> 5234072.567
A6: Materials | B6: 303078.3 | C6: =B6*'Cost Escalations'!$E$21 -> 332231.5325
A7: Other | B7: 458593.18 | C7: =B7*'Cost Escalations'!$E$21 -> 502705.456
A8: Damage/Emergency
A9: Labour | B9: 1332665.06 | C9: =B9*'Cost Escalations'!$E$21 -> 1460854.687
A10: Contractor | B10: 331765.18 | C10: =B10*'Cost Escalations'!$E$21 -> 363677.8159
A11: Materials | B11: 401137.78 | C11: =B11*'Cost Escalations'!$E$21 -> 439723.3962
A12: Other | B12: 52326.39 | C12: =B12*'Cost Escalations'!$E$21 -> 57359.68805
A13: Total direct opex | B13: =SUM(B4:B12) -> 7722787.09 | C13: =SUM(C4:C12) -> 8465645.314
A15: Adjustments (material costs)
A16: LED Lamps | B16: -210000 | C16: =B16*'Cost Escalations'!$E$21 -> -230199.9907
A17: Overheads & Oncosts
A18: Base Opex | C18: =C13+C16+C17 -> 8235445.324
A19: Notes:
A20: Material costs removed to reflect the fact that, upon failure, the LED luminaire is replaced and becomes capex
A22: Overheads & Oncosts
A23: Labour oncost | C23: 0
A24: Fleet oncost | C24: =(C4+C9)*Overheads!D15 -> 325053.0847
A25: Material oncosts | C25: =(C6+C11+C16)*Overheads!D9 -> 43117.03003
A26: Network overheads | C26: =(C18+C23+C24+C25)*Overheads!D19 -> 993231.5826
A27: Non-network overheads | C27: =(C4+C9)*Overheads!D20 -> 543731.138
A28: Non-network depreciation | C28: =(C4+C9)*Overheads!D25 -> 211673.3757
A29: Corporate overheads | C29: =C18*Overheads!D26 -> 442970.8639
A30: Market | C30: =C18*Overheads!D27 -> 23310.83168
A31: Customer ops | C31: =C18*Overheads!D28 -> 235404.3384
A32: Total | C32: =SUM(C23:C31) -> 2818492.245
A33: Base Opex (Gross) | C33: =C18+C32 -> 11053937.57
A35: Table 2 - Forecast Capex (Gross)
A36: Forecast opex | B36: 2022-23 | C36: 2024-25 | D36: 2025-26 | E36: 2026-27 | F36: 2027-28 | G36: 2028-29 | H36: 2029-30
A37: LED opex | D37: =D39*('ERG - Opex BST'!E5/'ERG - Opex BST'!E7) -> 5283282.906 | E37: =E39*('ERG - Opex BST'!F5/'ERG - Opex BST'!F7) -> 3658238.098 | F37: =F39*('ERG - Opex BST'!G5/'ERG - Opex BST'!G7) -> 2406277.564 | G37: =G39*('ERG - Opex BST'!H5/'ERG - Opex BST'!H7) -> 1305066.969 | H37: =H39*('ERG - Opex BST'!I5/'ERG - Opex BST'!I7) -> 0
A38: CONV opex | D38: =D39*('ERG - Opex BST'!E6/'ERG - Opex BST'!E7) -> 5436022.031 | E38: =E39*('ERG - Opex BST'!F6/'ERG - Opex BST'!F7) -> 6699022.553 | F38: =F39*('ERG - Opex BST'!G6/'ERG - Opex BST'!G7) -> 7590367.651 | G38: =G39*('ERG - Opex BST'!H6/'ERG - Opex BST'!H7) -> 8367800.92 | H38: =H39*('ERG - Opex BST'!I6/'ERG - Opex BST'!I7) -> 9372333.577
A39: Total | C39: =C33 -> 11053937.57 | D39: =C39*(1+'ERG - Opex BST'!E39) -> 10719304.94 | E39: =$C$39*(1+'ERG - Opex BST'!F39) -> 10357260.65 | F39: =$C$39*(1+'ERG - Opex BST'!G39) -> 9996645.214 | G39: =$C$39*(1+'ERG - Opex BST'!H39) -> 9672867.889 | H39: =$C$39*(1+'ERG - Opex BST'!I39) -> 9372333.577
